{"text_format":"1","workbook":"xlsx","n_sheets":18,"sheets":["A. Input_by Equipment Class","B. Input_by Activity Definition","C. Evidence Checklist","Drop down lists","HEER vs CL & VEU requirements","Products by Activity Definition","LED Lamp Only 240V requirements","E.11_Minimum light output","LED_240V_E.1","LED_ELV_E.1","LED_recessed_E.1","LED_lamp.driver_E.1","LED_floodlight_E.2","LED_240V_E.3","LED_floodlight_E.3","LED_linear_E.5","LED_240V_E.11","LED_linear_E.13"],"not_rendered":{"charts":0,"images":2,"macros":1,"external_links":0,"defined_names":25,"comments":0,"pivot_tables":0},"unopened":[],"bounds":{"document_bytes":16777216,"sheet_cells":100000,"rows_first":2000,"rows_last":500,"rows_between":2000,"halvings":0,"cell_chars":16384,"cell_head_chars":4096},"cells_cut":0,"cells_raw":0,"read":"whole","date_system":"1900"}

{"sheet":"A. Input_by Equipment Class","index":0,"n_rows":32,"n_cols":15,"rows_kept":32,"cut":false,"hidden":false,"merged":[[9,3,9,8],[10,3,10,8],[11,3,11,8],[3,6,3,8]]}
[]
[null,null,{"$f":"IF(OR(C4=\"Please select …\",C4=\"\"),\"1. Select lighting category\",\"\")","v":"1. Select lighting category"},{"$f":"IF(OR(C4=\"Please select …\",D4=\"\"),\"2. Select Activity Definition\",\"\")","v":"2. Select Activity Definition"}]
[null,{"$f":"HLOOKUP($C4,'Drop down lists'!$A$19:$G$20,2,0)","v":{"$error":"#N/A"}},"Select Equipment Class","Select Eligible Activity Definitions"]
[null,{"$f":"IF(D4=\"\",\"\",D4)","v":""},null,null,null,null,"Rated Lumen Output ≥ average lumen output of the existing equipment, as defined in Activity E11: Minimum lumen output (click to view)"]
[]
[null,null,"Is product accepted for use by ESS?\n(Commercial Lighting Method)",null,{"$f":"IF(OR(D6=\"Please select …\",D6=\"\"),\"3. Select whether the product is already accepted for use under the Commercial Lighting method in the ESS\",\"\")","v":"3. Select whether the product is already accepted for use under the Commercial Lighting method in the ESS"}]
[null,null,"Is product accepted for use in VEU program?",null,{"$f":"IF(OR(D7=\"Please select …\",D7=\"\"),\"4. Select whether the product is already accepted for use in VEU program\",\"\")","v":"4. Select whether the product is already accepted for use in VEU program"}]
[]
[null,1,{"$f":"\"Activity Definition \"&B4&\":\"","v":"Activity Definition :"},{"$f":"IFERROR(VLOOKUP(D4,'Drop down lists'!$A$1:$B$7,2,0),\"\")","v":""}]
[null,2,"Equipment Description:",{"$f":"IFERROR(INDIRECT($B$3&\"_\"&$B$4&\"!\"&D$13&$B9),\"\")","v":""}]
[null,3,"Australian safety standard:",{"$f":"IFERROR(INDIRECT($B$3&\"_\"&$B$4&\"!\"&D$13&$B10),\"\")","v":""}]
[null,null,null,{"$f":"IFERROR(INDIRECT($B$3&\"_\"&$B$4&\"!\"&D$13&$B11),\"\")","v":""}]
[null,null,"A","B","C","D","E","F","G","H","I",null,"J","K","L"]
[null,null,"Parameter","Requirement","Documentation Requirement 1","And/Or?","Documentation Requirement 2","Documentation Required","Minimum test sample size","ELT Acceptance OK?","VEU program Acceptance OK?","Enter the file name of supporting documentation"]
[null,6,{"$f":"INDIRECT($B$3&\"_\"&$B$4&\"!\"&C$13&$B15)","v":{"$error":"#N/A"}},{"$f":"IF(OR($J15=\"Yes\",$K15=\"Yes\"),\"Not required\",INDIRECT($B$3&\"_\"&$B$4&\"!\"&D$13&$B15))","v":{"$error":"#N/A"}},{"$f":"IF(OR($J15=\"Yes\",$K15=\"Yes\"),\"-\",INDIRECT($B$3&\"_\"&$B$4&\"!\"&E$13&$B15))","v":{"$error":"#N/A"}},{"$error":"#N/A"},{"$error":"#N/A"},{"$error":"#N/A"},{"$error":"#N/A"},{"$f":"IF($D$6=\"Yes\",INDIRECT($B$3&\"_\"&$B$4&\"!\"&J$13&$B15),\"N/A\")","v":"N/A"},{"$f":"IF($D$7=\"Yes\",INDIRECT($B$3&\"_\"&$B$4&\"!\"&K$13&$B15),\"N/A\")","v":"N/A"}]
[null,7,{"$error":"#N/A"},{"$error":"#N/A"},{"$error":"#N/A"},{"$error":"#N/A"},{"$error":"#N/A"},{"$error":"#N/A"},{"$error":"#N/A"},"N/A","N/A"]
[null,8,{"$error":"#N/A"},{"$error":"#N/A"},{"$error":"#N/A"},{"$error":"#N/A"},{"$error":"#N/A"},{"$error":"#N/A"},{"$error":"#N/A"},"N/A","N/A"]
[null,9,{"$error":"#N/A"},{"$error":"#N/A"},{"$error":"#N/A"},{"$error":"#N/A"},{"$error":"#N/A"},{"$error":"#N/A"},{"$error":"#N/A"},"N/A","N/A"]
[null,10,{"$error":"#N/A"},{"$error":"#N/A"},{"$error":"#N/A"},{"$error":"#N/A"},{"$error":"#N/A"},{"$error":"#N/A"},{"$error":"#N/A"},"N/A","N/A"]
[null,11,{"$error":"#N/A"},{"$error":"#N/A"},{"$error":"#N/A"},{"$error":"#N/A"},{"$error":"#N/A"},{"$error":"#N/A"},{"$error":"#N/A"},"N/A","N/A"]
[null,12,{"$error":"#N/A"},{"$error":"#N/A"},{"$error":"#N/A"},{"$error":"#N/A"},{"$error":"#N/A"},{"$error":"#N/A"},{"$error":"#N/A"},"N/A","N/A"]
[null,13,{"$error":"#N/A"},{"$error":"#N/A"},{"$error":"#N/A"},{"$error":"#N/A"},{"$error":"#N/A"},{"$error":"#N/A"},{"$error":"#N/A"},"N/A","N/A"]
[null,14,{"$error":"#N/A"},{"$error":"#N/A"},{"$error":"#N/A"},{"$error":"#N/A"},{"$error":"#N/A"},{"$error":"#N/A"},{"$error":"#N/A"},"N/A","N/A"]
[null,15,{"$error":"#N/A"},{"$error":"#N/A"},{"$error":"#N/A"},{"$error":"#N/A"},{"$error":"#N/A"},{"$error":"#N/A"},{"$error":"#N/A"},"N/A","N/A"]
[null,16,{"$error":"#N/A"},{"$error":"#N/A"},{"$f":"IF(OR($J25=\"Yes\",$K25=\"Yes\"),\"-\",INDIRECT($B$3&\"_\"&$B$4&\"!\"&E$13&$B25))","v":{"$error":"#N/A"}},{"$error":"#N/A"},{"$error":"#N/A"},{"$error":"#N/A"},{"$error":"#N/A"},"N/A","N/A"]
[null,17,{"$error":"#N/A"},{"$error":"#N/A"},{"$error":"#N/A"},{"$error":"#N/A"},{"$error":"#N/A"},{"$error":"#N/A"},{"$error":"#N/A"},"N/A","N/A"]
[null,18,{"$error":"#N/A"},{"$error":"#N/A"},{"$error":"#N/A"},{"$error":"#N/A"},{"$error":"#N/A"},{"$error":"#N/A"},{"$error":"#N/A"},"N/A","N/A"]
[null,19,{"$error":"#N/A"},{"$error":"#N/A"},{"$error":"#N/A"},{"$error":"#N/A"},{"$error":"#N/A"},{"$error":"#N/A"},{"$error":"#N/A"},"N/A","N/A"]
[null,20,{"$error":"#N/A"},{"$error":"#N/A"},{"$error":"#N/A"},{"$error":"#N/A"},{"$error":"#N/A"},{"$error":"#N/A"},{"$error":"#N/A"},"N/A","N/A"]
[null,21,{"$error":"#N/A"},{"$error":"#N/A"},{"$error":"#N/A"},{"$error":"#N/A"},{"$error":"#N/A"},{"$error":"#N/A"},{"$error":"#N/A"},"N/A","N/A"]
[null,22,{"$error":"#N/A"},{"$error":"#N/A"},{"$error":"#N/A"},{"$error":"#N/A"},{"$error":"#N/A"},{"$error":"#N/A"},{"$error":"#N/A"},"N/A","N/A"]
[null,23,{"$error":"#N/A"},{"$error":"#N/A"},{"$error":"#N/A"},{"$error":"#N/A"},{"$error":"#N/A"},{"$error":"#N/A"},{"$error":"#N/A"},"N/A","N/A"]

{"sheet":"B. Input_by Activity Definition","index":1,"n_rows":32,"n_cols":15,"rows_kept":32,"cut":false,"hidden":false,"merged":[[9,3,9,8],[10,3,10,8],[11,3,11,8],[3,6,3,8]]}
[]
[null,null,{"$f":"IF(OR(C4=\"Please select proposed lighting activities …\",C4=\"\"),\"1. Select Activity Definition\",\"\")","v":"1. Select Activity Definition"},{"$f":"IF(OR(C4=\"Please select proposed lighting activities …\",D4=\"Please select …\",D4=\"\"),\"2. Select lighting category\",\"\")","v":"2. Select lighting category"}]
[null,{"$f":"HLOOKUP($D4,'Drop down lists'!$A$19:$G$20,2,0)","v":{"$error":"#N/A"}},"Select Activity Defintion","Select Eligible Equipment Classes"]
[null,{"$f":"IF(C4=\"\",\"\",C4)","v":"Please select proposed lighting activities …"},"Please select proposed lighting activities …",null,null,null,"Rated Lumen Output ≥ average lumen output of the existing equipment, as defined in Activity E11: Minimum lumen output (click to view)"]
[]
[null,null,"Is product accepted for use by ESS?\n(Commercial Lighting Method)","Please select …",{"$f":"IF(OR(D6=\"Please select …\",D6=\"\"),\"3. Select whether the product is already accepted for use under the Commercial Lighting method in the ESS\",\"\")","v":"3. Select whether the product is already accepted for use under the Commercial Lighting method in the ESS"}]
[null,null,"Is product accepted for use in VEU program?","Please select …",{"$f":"IF(OR(D7=\"Please select …\",D7=\"\"),\"4. Select whether the product is already accepted for use in VEU program\",\"\")","v":"4. Select whether the product is already accepted for use in VEU program"}]
[]
[null,1,{"$f":"IF(B4=\"Please select proposed lighting activities …\",\"Activity Definition:\",IFERROR((\"Activity Definition \"&B4&\":\"),\"Activity Definition:\"))","v":"Activity Definition:"},{"$f":"IFERROR(VLOOKUP(B4,'Drop down lists'!$A$1:$B$7,2,0),\"\")","v":""}]
[null,2,"Equipment Description:",{"$f":"IFERROR(INDIRECT($B$3&\"_\"&$B$4&\"!\"&D$13&$B9),\"\")","v":""}]
[null,3,"Australian safety standard:",{"$f":"IFERROR(INDIRECT($B$3&\"_\"&$B$4&\"!\"&D$13&$B10),\"\")","v":""}]
[null,null,null,{"$f":"IFERROR(INDIRECT($B$3&\"_\"&$B$4&\"!\"&D$13&$B11),\"\")","v":""}]
[null,null,"A","B","C","D","E","F","G","H","I",null,"J","K","L"]
[null,null,"Parameter","Requirement","Documentation Requirement 1","And/Or?","Documentation Requirement 2","Documentation Required","Minimum test sample size","ELT Acceptance OK?","VEET Acceptance OK?","Enter the file name of supporting documentation"]
[null,6,{"$f":"INDIRECT($B$3&\"_\"&$B$4&\"!\"&C$13&$B15)","v":{"$error":"#N/A"}},{"$f":"IF(OR($J15=\"Yes\",$K15=\"Yes\"),\"Not required\",INDIRECT($B$3&\"_\"&$B$4&\"!\"&D$13&$B15))","v":{"$error":"#N/A"}},{"$f":"IF(OR($J15=\"Yes\",$K15=\"Yes\"),\"-\",INDIRECT($B$3&\"_\"&$B$4&\"!\"&E$13&$B15))","v":{"$error":"#N/A"}},{"$error":"#N/A"},{"$error":"#N/A"},{"$error":"#N/A"},{"$error":"#N/A"},{"$f":"IF($D$6=\"Yes\",INDIRECT($B$3&\"_\"&$B$4&\"!\"&J$13&$B15),\"N/A\")","v":"N/A"},{"$f":"IF($D$7=\"Yes\",INDIRECT($B$3&\"_\"&$B$4&\"!\"&K$13&$B15),\"N/A\")","v":"N/A"}]
[null,7,{"$error":"#N/A"},{"$error":"#N/A"},{"$error":"#N/A"},{"$error":"#N/A"},{"$error":"#N/A"},{"$error":"#N/A"},{"$error":"#N/A"},"N/A","N/A"]
[null,8,{"$error":"#N/A"},{"$error":"#N/A"},{"$error":"#N/A"},{"$error":"#N/A"},{"$error":"#N/A"},{"$error":"#N/A"},{"$error":"#N/A"},"N/A","N/A"]
[null,9,{"$error":"#N/A"},{"$error":"#N/A"},{"$error":"#N/A"},{"$error":"#N/A"},{"$error":"#N/A"},{"$error":"#N/A"},{"$error":"#N/A"},"N/A","N/A"]
[null,10,{"$error":"#N/A"},{"$error":"#N/A"},{"$error":"#N/A"},{"$error":"#N/A"},{"$error":"#N/A"},{"$error":"#N/A"},{"$error":"#N/A"},"N/A","N/A"]
[null,11,{"$error":"#N/A"},{"$error":"#N/A"},{"$error":"#N/A"},{"$error":"#N/A"},{"$error":"#N/A"},{"$error":"#N/A"},{"$error":"#N/A"},"N/A","N/A"]
[null,12,{"$error":"#N/A"},{"$error":"#N/A"},{"$error":"#N/A"},{"$error":"#N/A"},{"$error":"#N/A"},{"$error":"#N/A"},{"$error":"#N/A"},"N/A","N/A"]
[null,13,{"$error":"#N/A"},{"$error":"#N/A"},{"$error":"#N/A"},{"$error":"#N/A"},{"$error":"#N/A"},{"$error":"#N/A"},{"$error":"#N/A"},"N/A","N/A"]
[null,14,{"$error":"#N/A"},{"$error":"#N/A"},{"$error":"#N/A"},{"$error":"#N/A"},{"$error":"#N/A"},{"$error":"#N/A"},{"$error":"#N/A"},"N/A","N/A"]
[null,15,{"$error":"#N/A"},{"$error":"#N/A"},{"$error":"#N/A"},{"$error":"#N/A"},{"$error":"#N/A"},{"$error":"#N/A"},{"$error":"#N/A"},"N/A","N/A"]
[null,16,{"$error":"#N/A"},{"$error":"#N/A"},{"$f":"IF(OR($J25=\"Yes\",$K25=\"Yes\"),\"-\",INDIRECT($B$3&\"_\"&$B$4&\"!\"&E$13&$B25))","v":{"$error":"#N/A"}},{"$error":"#N/A"},{"$error":"#N/A"},{"$error":"#N/A"},{"$error":"#N/A"},"N/A","N/A"]
[null,17,{"$error":"#N/A"},{"$error":"#N/A"},{"$error":"#N/A"},{"$error":"#N/A"},{"$error":"#N/A"},{"$error":"#N/A"},{"$error":"#N/A"},"N/A","N/A"]
[null,18,{"$error":"#N/A"},{"$error":"#N/A"},{"$error":"#N/A"},{"$error":"#N/A"},{"$error":"#N/A"},{"$error":"#N/A"},{"$error":"#N/A"},"N/A","N/A"]
[null,19,{"$error":"#N/A"},{"$error":"#N/A"},{"$error":"#N/A"},{"$error":"#N/A"},{"$error":"#N/A"},{"$error":"#N/A"},{"$error":"#N/A"},"N/A","N/A"]
[null,20,{"$error":"#N/A"},{"$error":"#N/A"},{"$error":"#N/A"},{"$error":"#N/A"},{"$error":"#N/A"},{"$error":"#N/A"},{"$error":"#N/A"},"N/A","N/A"]
[null,21,{"$error":"#N/A"},{"$error":"#N/A"},{"$error":"#N/A"},{"$error":"#N/A"},{"$error":"#N/A"},{"$error":"#N/A"},{"$error":"#N/A"},"N/A","N/A"]
[null,22,{"$error":"#N/A"},{"$error":"#N/A"},{"$error":"#N/A"},{"$error":"#N/A"},{"$error":"#N/A"},{"$error":"#N/A"},{"$error":"#N/A"},"N/A","N/A"]
[null,23,{"$error":"#N/A"},{"$error":"#N/A"},{"$error":"#N/A"},{"$error":"#N/A"},{"$error":"#N/A"},{"$error":"#N/A"},{"$error":"#N/A"},"N/A","N/A"]

{"sheet":"C. Evidence Checklist","index":2,"n_rows":110,"n_cols":20,"rows_kept":110,"cut":false,"hidden":false,"merged":[[0,11,0,19]]}
[null,null,null,null,null,null,null,null,null,null,"Version 2.3  September 2022","You must submit a copy of this checklist with your application. The product information you enter must be consistent with all documentation you submit. If you supply inconsistent or incomplete information it may delay your application. "]
[null,null,"Product Details",null,null,null,null,null,null,null,null,"Do you have the required evidence to demonstrate compliance with the following requirements? \nSelect Yes or No from the drop-down list as appropriate."]
[null,null,"Lamp Brand","Lamp Model","Driver Brand (if declared article)","Driver Model (if declared article)","LCP / NLP requested","Select Equipment Class","Select Eligible Activity Definitions","Is product accepted for use by ESS (Commercial Lighting Method)","Is product accepted for use by VEU program","Product Specification Sheet","Safety","EMC","Power Factor","LCP","CRI","Luminous efficacy","Light Output","Lifetime"]
[null,{"$f":"HLOOKUP($H4,'Drop down lists'!$A$19:$F$20,2,0)","v":{"$error":"#N/A"}},null,null,null,null,null,"Please select …","Please select …","Please select …","Please select …"]
[null,{"$f":"HLOOKUP($H5,'Drop down lists'!$A$19:$F$20,2,0)","v":{"$error":"#N/A"}}]
[null,{"$f":"HLOOKUP($H6,'Drop down lists'!$A$19:$F$20,2,0)","v":{"$error":"#N/A"}}]
[null,{"$f":"HLOOKUP($H7,'Drop down lists'!$A$19:$F$20,2,0)","v":{"$error":"#N/A"}}]
[null,{"$f":"HLOOKUP($H8,'Drop down lists'!$A$19:$F$20,2,0)","v":{"$error":"#N/A"}}]
[null,{"$f":"HLOOKUP($H9,'Drop down lists'!$A$19:$F$20,2,0)","v":{"$error":"#N/A"}}]
[null,{"$f":"HLOOKUP($H10,'Drop down lists'!$A$19:$F$20,2,0)","v":{"$error":"#N/A"}}]
[null,{"$f":"HLOOKUP($H11,'Drop down lists'!$A$19:$F$20,2,0)","v":{"$error":"#N/A"}}]
[null,{"$f":"HLOOKUP($H12,'Drop down lists'!$A$19:$F$20,2,0)","v":{"$error":"#N/A"}}]
[null,{"$f":"HLOOKUP($H13,'Drop down lists'!$A$19:$F$20,2,0)","v":{"$error":"#N/A"}}]
[null,{"$f":"HLOOKUP($H14,'Drop down lists'!$A$19:$F$20,2,0)","v":{"$error":"#N/A"}}]
[null,{"$f":"HLOOKUP($H15,'Drop down lists'!$A$19:$F$20,2,0)","v":{"$error":"#N/A"}}]
[null,{"$f":"HLOOKUP($H16,'Drop down lists'!$A$19:$F$20,2,0)","v":{"$error":"#N/A"}}]
[null,{"$f":"HLOOKUP($H17,'Drop down lists'!$A$19:$F$20,2,0)","v":{"$error":"#N/A"}}]
[null,{"$f":"HLOOKUP($H18,'Drop down lists'!$A$19:$F$20,2,0)","v":{"$error":"#N/A"}}]
[null,{"$f":"HLOOKUP($H19,'Drop down lists'!$A$19:$F$20,2,0)","v":{"$error":"#N/A"}}]
[null,{"$f":"HLOOKUP($H20,'Drop down lists'!$A$19:$F$20,2,0)","v":{"$error":"#N/A"}}]
[null,{"$f":"HLOOKUP($H21,'Drop down lists'!$A$19:$F$20,2,0)","v":{"$error":"#N/A"}}]
[null,{"$f":"HLOOKUP($H22,'Drop down lists'!$A$19:$F$20,2,0)","v":{"$error":"#N/A"}}]
[null,{"$f":"HLOOKUP($H23,'Drop down lists'!$A$19:$F$20,2,0)","v":{"$error":"#N/A"}}]
[null,{"$f":"HLOOKUP($H24,'Drop down lists'!$A$19:$F$20,2,0)","v":{"$error":"#N/A"}}]
[null,{"$f":"HLOOKUP($H25,'Drop down lists'!$A$19:$F$20,2,0)","v":{"$error":"#N/A"}}]
[null,{"$f":"HLOOKUP($H26,'Drop down lists'!$A$19:$F$20,2,0)","v":{"$error":"#N/A"}}]
[null,{"$f":"HLOOKUP($H27,'Drop down lists'!$A$19:$F$20,2,0)","v":{"$error":"#N/A"}}]
[null,{"$f":"HLOOKUP($H28,'Drop down lists'!$A$19:$F$20,2,0)","v":{"$error":"#N/A"}}]
[null,{"$f":"HLOOKUP($H29,'Drop down lists'!$A$19:$F$20,2,0)","v":{"$error":"#N/A"}}]
[null,{"$f":"HLOOKUP($H30,'Drop down lists'!$A$19:$F$20,2,0)","v":{"$error":"#N/A"}}]
[null,{"$f":"HLOOKUP($H31,'Drop down lists'!$A$19:$F$20,2,0)","v":{"$error":"#N/A"}}]
[null,{"$f":"HLOOKUP($H32,'Drop down lists'!$A$19:$F$20,2,0)","v":{"$error":"#N/A"}}]
[null,{"$f":"HLOOKUP($H33,'Drop down lists'!$A$19:$F$20,2,0)","v":{"$error":"#N/A"}}]
[null,{"$f":"HLOOKUP($H34,'Drop down lists'!$A$19:$F$20,2,0)","v":{"$error":"#N/A"}}]
[null,{"$f":"HLOOKUP($H35,'Drop down lists'!$A$19:$F$20,2,0)","v":{"$error":"#N/A"}}]
[null,{"$f":"HLOOKUP($H36,'Drop down lists'!$A$19:$F$20,2,0)","v":{"$error":"#N/A"}}]
[null,{"$f":"HLOOKUP($H37,'Drop down lists'!$A$19:$F$20,2,0)","v":{"$error":"#N/A"}}]
[null,{"$f":"HLOOKUP($H38,'Drop down lists'!$A$19:$F$20,2,0)","v":{"$error":"#N/A"}}]
[null,{"$f":"HLOOKUP($H39,'Drop down lists'!$A$19:$F$20,2,0)","v":{"$error":"#N/A"}}]
[null,{"$f":"HLOOKUP($H40,'Drop down lists'!$A$19:$F$20,2,0)","v":{"$error":"#N/A"}}]
[null,{"$f":"HLOOKUP($H41,'Drop down lists'!$A$19:$F$20,2,0)","v":{"$error":"#N/A"}}]
[null,{"$f":"HLOOKUP($H42,'Drop down lists'!$A$19:$F$20,2,0)","v":{"$error":"#N/A"}}]
[null,{"$f":"HLOOKUP($H43,'Drop down lists'!$A$19:$F$20,2,0)","v":{"$error":"#N/A"}}]
[null,{"$f":"HLOOKUP($H44,'Drop down lists'!$A$19:$F$20,2,0)","v":{"$error":"#N/A"}}]
[null,{"$f":"HLOOKUP($H45,'Drop down lists'!$A$19:$F$20,2,0)","v":{"$error":"#N/A"}}]
[null,{"$f":"HLOOKUP($H46,'Drop down lists'!$A$19:$F$20,2,0)","v":{"$error":"#N/A"}}]
[null,{"$f":"HLOOKUP($H47,'Drop down lists'!$A$19:$F$20,2,0)","v":{"$error":"#N/A"}}]
[null,{"$f":"HLOOKUP($H48,'Drop down lists'!$A$19:$F$20,2,0)","v":{"$error":"#N/A"}}]
[null,{"$f":"HLOOKUP($H49,'Drop down lists'!$A$19:$F$20,2,0)","v":{"$error":"#N/A"}}]
[null,{"$f":"HLOOKUP($H50,'Drop down lists'!$A$19:$F$20,2,0)","v":{"$error":"#N/A"}}]
[null,{"$f":"HLOOKUP($H51,'Drop down lists'!$A$19:$F$20,2,0)","v":{"$error":"#N/A"}}]
[null,{"$f":"HLOOKUP($H52,'Drop down lists'!$A$19:$F$20,2,0)","v":{"$error":"#N/A"}}]
[null,{"$f":"HLOOKUP($H53,'Drop down lists'!$A$19:$F$20,2,0)","v":{"$error":"#N/A"}}]
[null,{"$f":"HLOOKUP($H54,'Drop down lists'!$A$19:$F$20,2,0)","v":{"$error":"#N/A"}}]
[null,{"$f":"HLOOKUP($H55,'Drop down lists'!$A$19:$F$20,2,0)","v":{"$error":"#N/A"}}]
[null,{"$f":"HLOOKUP($H56,'Drop down lists'!$A$19:$F$20,2,0)","v":{"$error":"#N/A"}}]
[null,{"$f":"HLOOKUP($H57,'Drop down lists'!$A$19:$F$20,2,0)","v":{"$error":"#N/A"}}]
[null,{"$f":"HLOOKUP($H58,'Drop down lists'!$A$19:$F$20,2,0)","v":{"$error":"#N/A"}}]
[null,{"$f":"HLOOKUP($H59,'Drop down lists'!$A$19:$F$20,2,0)","v":{"$error":"#N/A"}}]
[null,{"$f":"HLOOKUP($H60,'Drop down lists'!$A$19:$F$20,2,0)","v":{"$error":"#N/A"}}]
[null,{"$f":"HLOOKUP($H61,'Drop down lists'!$A$19:$F$20,2,0)","v":{"$error":"#N/A"}}]
[null,{"$f":"HLOOKUP($H62,'Drop down lists'!$A$19:$F$20,2,0)","v":{"$error":"#N/A"}}]
[null,{"$f":"HLOOKUP($H63,'Drop down lists'!$A$19:$F$20,2,0)","v":{"$error":"#N/A"}}]
[null,{"$f":"HLOOKUP($H64,'Drop down lists'!$A$19:$F$20,2,0)","v":{"$error":"#N/A"}}]
[null,{"$f":"HLOOKUP($H65,'Drop down lists'!$A$19:$F$20,2,0)","v":{"$error":"#N/A"}}]
[null,{"$f":"HLOOKUP($H66,'Drop down lists'!$A$19:$F$20,2,0)","v":{"$error":"#N/A"}}]
[null,{"$f":"HLOOKUP($H67,'Drop down lists'!$A$19:$F$20,2,0)","v":{"$error":"#N/A"}}]
[null,{"$f":"HLOOKUP($H68,'Drop down lists'!$A$19:$F$20,2,0)","v":{"$error":"#N/A"}}]
[null,{"$f":"HLOOKUP($H69,'Drop down lists'!$A$19:$F$20,2,0)","v":{"$error":"#N/A"}}]
[null,{"$f":"HLOOKUP($H70,'Drop down lists'!$A$19:$F$20,2,0)","v":{"$error":"#N/A"}}]
[null,{"$f":"HLOOKUP($H71,'Drop down lists'!$A$19:$F$20,2,0)","v":{"$error":"#N/A"}}]
[null,{"$f":"HLOOKUP($H72,'Drop down lists'!$A$19:$F$20,2,0)","v":{"$error":"#N/A"}}]
[null,{"$f":"HLOOKUP($H73,'Drop down lists'!$A$19:$F$20,2,0)","v":{"$error":"#N/A"}}]
[null,{"$f":"HLOOKUP($H74,'Drop down lists'!$A$19:$F$20,2,0)","v":{"$error":"#N/A"}}]
[null,{"$f":"HLOOKUP($H75,'Drop down lists'!$A$19:$F$20,2,0)","v":{"$error":"#N/A"}}]
[null,{"$f":"HLOOKUP($H76,'Drop down lists'!$A$19:$F$20,2,0)","v":{"$error":"#N/A"}}]
[null,{"$f":"HLOOKUP($H77,'Drop down lists'!$A$19:$F$20,2,0)","v":{"$error":"#N/A"}}]
[null,{"$f":"HLOOKUP($H78,'Drop down lists'!$A$19:$F$20,2,0)","v":{"$error":"#N/A"}}]
[null,{"$f":"HLOOKUP($H79,'Drop down lists'!$A$19:$F$20,2,0)","v":{"$error":"#N/A"}}]
[null,{"$f":"HLOOKUP($H80,'Drop down lists'!$A$19:$F$20,2,0)","v":{"$error":"#N/A"}}]
[null,{"$f":"HLOOKUP($H81,'Drop down lists'!$A$19:$F$20,2,0)","v":{"$error":"#N/A"}}]
[null,{"$f":"HLOOKUP($H82,'Drop down lists'!$A$19:$F$20,2,0)","v":{"$error":"#N/A"}}]
[null,{"$f":"HLOOKUP($H83,'Drop down lists'!$A$19:$F$20,2,0)","v":{"$error":"#N/A"}}]
[null,{"$f":"HLOOKUP($H84,'Drop down lists'!$A$19:$F$20,2,0)","v":{"$error":"#N/A"}}]
[null,{"$f":"HLOOKUP($H85,'Drop down lists'!$A$19:$F$20,2,0)","v":{"$error":"#N/A"}}]
[null,{"$f":"HLOOKUP($H86,'Drop down lists'!$A$19:$F$20,2,0)","v":{"$error":"#N/A"}}]
[null,{"$f":"HLOOKUP($H87,'Drop down lists'!$A$19:$F$20,2,0)","v":{"$error":"#N/A"}}]
[null,{"$f":"HLOOKUP($H88,'Drop down lists'!$A$19:$F$20,2,0)","v":{"$error":"#N/A"}}]
[null,{"$f":"HLOOKUP($H89,'Drop down lists'!$A$19:$F$20,2,0)","v":{"$error":"#N/A"}}]
[null,{"$f":"HLOOKUP($H90,'Drop down lists'!$A$19:$F$20,2,0)","v":{"$error":"#N/A"}}]
[null,{"$f":"HLOOKUP($H91,'Drop down lists'!$A$19:$F$20,2,0)","v":{"$error":"#N/A"}}]
[null,{"$f":"HLOOKUP($H92,'Drop down lists'!$A$19:$F$20,2,0)","v":{"$error":"#N/A"}}]
[null,{"$f":"HLOOKUP($H93,'Drop down lists'!$A$19:$F$20,2,0)","v":{"$error":"#N/A"}}]
[null,{"$f":"HLOOKUP($H94,'Drop down lists'!$A$19:$F$20,2,0)","v":{"$error":"#N/A"}}]
[null,{"$f":"HLOOKUP($H95,'Drop down lists'!$A$19:$F$20,2,0)","v":{"$error":"#N/A"}}]
[null,{"$f":"HLOOKUP($H96,'Drop down lists'!$A$19:$F$20,2,0)","v":{"$error":"#N/A"}}]
[null,{"$f":"HLOOKUP($H97,'Drop down lists'!$A$19:$F$20,2,0)","v":{"$error":"#N/A"}}]
[null,{"$f":"HLOOKUP($H98,'Drop down lists'!$A$19:$F$20,2,0)","v":{"$error":"#N/A"}}]
[null,{"$f":"HLOOKUP($H99,'Drop down lists'!$A$19:$F$20,2,0)","v":{"$error":"#N/A"}}]
[null,{"$f":"HLOOKUP($H100,'Drop down lists'!$A$19:$F$20,2,0)","v":{"$error":"#N/A"}}]
[null,{"$f":"HLOOKUP($H101,'Drop down lists'!$A$19:$F$20,2,0)","v":{"$error":"#N/A"}}]
[null,{"$f":"HLOOKUP($H102,'Drop down lists'!$A$19:$F$20,2,0)","v":{"$error":"#N/A"}}]
[null,{"$f":"HLOOKUP($H103,'Drop down lists'!$A$19:$F$20,2,0)","v":{"$error":"#N/A"}}]
[null,{"$f":"HLOOKUP($H104,'Drop down lists'!$A$19:$F$20,2,0)","v":{"$error":"#N/A"}}]
[null,{"$f":"HLOOKUP($H105,'Drop down lists'!$A$19:$F$20,2,0)","v":{"$error":"#N/A"}}]
[null,{"$f":"HLOOKUP($H106,'Drop down lists'!$A$19:$F$20,2,0)","v":{"$error":"#N/A"}}]
[null,{"$f":"HLOOKUP($H107,'Drop down lists'!$A$19:$F$20,2,0)","v":{"$error":"#N/A"}}]
[null,{"$f":"HLOOKUP($H108,'Drop down lists'!$A$19:$F$20,2,0)","v":{"$error":"#N/A"}}]
[null,{"$f":"HLOOKUP($H109,'Drop down lists'!$A$19:$F$20,2,0)","v":{"$error":"#N/A"}}]
[null,{"$f":"HLOOKUP($H110,'Drop down lists'!$A$19:$F$20,2,0)","v":{"$error":"#N/A"}}]

{"sheet":"Drop down lists","index":3,"n_rows":30,"n_cols":8,"rows_kept":30,"cut":false,"hidden":true,"merged":[]}
["Activity Definition: Lighting","Name of activity"]
["E.1","Replace halogen downlight with an LED luminaire and/or lamp"]
["E.2","Replace a linear halogen floodlight with a high efficiency lamp"]
["E.3","Replace parabolic aluminised reflector (PAR) lamp with efficient luminaire and/or lamp"]
["E.4","Replace a T8 or T12 luminaire with a T5 luminaire"]
["E.5","Replace a T8 or T12 luminaire with an LED luminaire"]
["E.11","Replace an Edison screw or bayonet lamp with a LED lamp for general lighting purposes"]
["E.13","Replace a T5 luminaire with an LED luminaire"]
["Please select proposed lighting activities …","-"]
[]
["Products for each activity"]
["E.1","E.2","E.3","E.4","E.5","E.11","E.13","Please select …"]
["LED Lamp Only - 240V Self Ballasted","LED Luminaire - floodlight ","LED Lamp Only - 240V Self Ballasted","N/A","LED Luminaire - linear lamp","LED Lamp Only - 240V Self Ballasted","LED Luminaire - linear lamp","Please select …"]
["LED Lamp Only - ELV ",null,"LED Luminaire - floodlight "]
["LED Luminaire - recessed"]
["LED Lamp and Driver"]
[]
["Activity Definitions for each product category"]
["LED Lamp Only - 240V Self Ballasted","LED Lamp Only - ELV ","LED Luminaire - recessed","LED Lamp and Driver","LED Luminaire - floodlight ","LED Luminaire - linear lamp","Please select …","No_equipment"]
["LED_240V","LED_ELV","LED_recessed","LED_lamp.driver","LED_floodlight","LED_linear","Please select …","Please select …"]
["E.1","E.1","E.1","E.1","E.2","E.5"]
["E.3",null,null,null,"E.3","E.13"]
["E.11"]
[]
["If you intend to install a product in implementations of both E1 and E3, please ensure that it meets the minimum requirements of both activities prior to submitting the required documentation."]
[]
["Yes_No"]
["Yes"]
["No"]
["Please select …"]

{"sheet":"HEER vs CL & VEU requirements","index":4,"n_rows":26,"n_cols":8,"rows_kept":26,"cut":false,"hidden":false,"merged":[[1,1,1,5],[2,1,2,5],[17,1,17,5],[19,1,19,5]]}
[]
[null,"Some requirements of the Commercial Lighting method and the VEU scheme are the same as the HEER lighting requirements."]
[null,"The table below shows the requirements that we consider have already been addressed if the product is accepted under the Commercial Lighting method or the VEU scheme. "]
[]
[null,"Requirements that are the same between HEER, VEU and Commercial Lighting"]
[]
[null,"Requirement","Demonstrated by Commercial Lighting acceptance ","Additional information required for HEER acceptance","Demonstrated by VEU acceptance","Additional information required for HEER acceptance",null,"E13"]
[null,"Safety","Yes","No","Yes","No",null,"No"]
[null,"EMC","Yes","No","Yes","No",null,"No"]
[null,"Power Factor","Yes","No","Yes","No",null,"No"]
[null,"LCP","Yes","No","Yes","No",null,"No"]
[null,"CRI","No","Yes","Yes","No",null,"No"]
[null,"Luminous efficacy","No","Yes","Yes","No",null,"No"]
[null,"Light Output","No","Yes","No","Yes"]
[null,"Lifetime","No","Yes","No ","Yes"]
[]
[]
[null,"The minimum requirements, and the documents that are required to evidence those requirements, are published in the Product Applications Guide on the ESS website:"]
[null,"https://www.energysustainabilityschemes.nsw.gov.au/Accredited-Certificate-Providers/Product-acceptance"]
[null,"For the products you have proposed, please refer to the following tables for the proposed Activity and provide the required supporting documentation where indicated above:"]
[null,"1.    LED Lamp Only – 240V Self Ballasted: ",null,"Activity E1","Activity E3","Activity E11"]
[null,"2.    LED Lamp Only – ELV: ",null,"Activity E1"]
[null,"3.    LED Luminaire – recessed: ",null,"Activity E1"]
[null,"4.    LED Lamp and Driver:",null,"Activity E1"]
[null,"5.    LED Luminaire – Floodlight",null,"Activity E2","Activity E3"]
[null,"6.    LED Luminaire – Linear Lamp",null,"Activity E5","Activity E13"]

{"sheet":"Products by Activity Definition","index":5,"n_rows":17,"n_cols":8,"rows_kept":17,"cut":false,"hidden":false,"merged":[[1,1,1,10],[15,1,15,10],[16,1,16,10],[2,1,2,10]]}
[]
[null,"Some product categories can be used for multiple activities under the HEER method, and have different requirements depending on the activity for which they will be used. "]
[null,"The table below shows the product categories and the activities for which they can be used. "]
[]
[null,"Products for each activity"]
[]
[null,"Category","E1","E2","E3","E5","E11","E13"]
[null,"LED Lamp Only - 240V Self Ballasted","x",null,"x",null,"x"]
[null,"LED Lamp Only - ELV ","x"]
[null,"LED Luminaire - recessed","x"]
[null,"LED Lamp and Driver","x"]
[null,"LED Luminaire - floodlight ",null,"x","x"]
[null,"LED Luminaire - linear lamp",null,null,null,"x",null,"x"]
[]
[]
[null,"Please identify each activity that you intend to install each product categorised as LED Lamp Only – 240V Self Ballasted.  "]
[null,"If you intend to install a product in implementations of both E1 and E3, please ensure that it meets the minimum requirements of both activities prior to submitting the required documentation."]

{"sheet":"LED Lamp Only 240V requirements","index":6,"n_rows":15,"n_cols":5,"rows_kept":15,"cut":false,"hidden":false,"merged":[[1,1,1,6],[2,1,2,6],[14,1,14,6],[15,1,15,6],[16,1,16,6]]}
[]
[null,"Please identify each activity that you intend to install each product categorised as LED Lamp Only – 240V Self Ballasted."]
[null,"If you intend to install a product in implementations of both E1 and E3, please ensure that it meets the minimum requirements of both activities prior to submitting the required documentation."]
[]
[null,"Differences in LED Lamp Only 240V Self Ballasted requirements"]
[]
[null,"Parameter","E1","E3","E11"]
[null,"Luminous Efficacy","≥ 48 lumens/watt","≥ 45 lumens/watt"]
[null,"Light Output","Downward Light Output ≥ 462 lumens","Minimum Light Output as defined in Table E3.1 of the ESS Rule","Light Output is the same or higher than the existing equipment, as defined in Table B.11 of the Product Applications Guide"]
[null,"Lifetime","15,000 hrs","12,000 hrs","8,400 hrs"]
[null,"Base",null,null,"The lamp must have an Edison screw or bayonet base"]
[]
[]
[null,"Please note the following additional points about HEER lighting requirements:"]
[null,"When applying for acceptance of a product to be used in an upgrade of the lamp only, you are required to submit IES LM-84-14 and IES TM-28-14 test reports, rather than an LM80 report with an in-site temperature measurement test."]

{"sheet":"E.11_Minimum light output","index":7,"n_rows":16,"n_cols":5,"rows_kept":16,"cut":false,"hidden":false,"merged":[[6,1,6,3],[3,1,3,10],[4,1,4,10]]}
[]
[null,"Activity E11: Minimum Light Output (lumens)"]
[]
[null,"For Activity E11, ACPs must ensure that the Light Output (measured in lumens) of the new lighting equipment is the same, or higher than the existing lighting equipment it is replacing.  "]
[null,"To ensure that ACPs meet this requirement, they must:\n- check the type of the existing lighting equipment and its Lamp Circuit Power (LCP)\n- refer to Table B.11 and note the minimum Light Output required for the new lighting equipment, and\n- ensure that the new lighting equipment they install has a Light Output that is the same, or higher than this."]
[]
[null,"Existing equipment – LCP (watts)",null,null,"New equipment –  Minimum Light Output (lumens)"]
[null,"Incandescent","Halogen","CFL","LED Lamp Only – 240V Self Ballasted"]
[null,"25 ≤ 39","18 ≤ 27","4 ≤ 6 ",250]
[null,"40 ≤ 59","28 ≤ 41","7 ≤ 10",500]
[null,"60 ≤ 74","42 ≤ 51","11 ≤ 14",800]
[null,"75 ≤ 99","52 ≤ 69","15 ≤ 18",1100]
[null,"100 or above","70 or above","19 ≤ 23",1500]
[]
[null,"Note:","The values in this table are based on the Light Globe Conversion Table on the ‘Energy Rating’ website: "]
[null,null,"www.energyrating.gov.au"]

{"sheet":"LED_240V_E.1","index":8,"n_rows":15,"n_cols":9,"rows_kept":15,"cut":false,"hidden":false,"merged":[[3,0,3,6]]}
["Description:","A self-ballasted LED Lamp as defined by AS/NZS 62560 Self-ballasted LED lamps for general lighting services by voltage > 50 V.  These Lamps are connected directly to a 240V supply."]
["Relevant Australian safety standard:","AS/NZS 62560: Self-ballasted LED-lamps for general lighting services by voltage > 50 V – Safety specifications"]
[null,""]
["Equipment Class: LED Lamp Only – 240V Self Ballasted"]
["Parameter","Requirement","Documentation Requirement 1","And/Or?","Documentation Requirement 2","Documentation Required","Minimum test sample size","Commercial Lighting Acceptance OK?","VEU Acceptance OK?"]
["Lamp Circuit Power (LCP)","LCP (as Published by the Scheme Administrator) ","Test report using IES LM-79-08 or other methodology from a laboratory accredited by National Association of Testing Authorities (NATA) or equivalent body","AND","Documentation showing the laboratory is accredited to perform IES LM-79-08 (if required)","At time of product acceptance",10,"Yes","Yes"]
["Minimum true power factor","≥ 0.55","Test report using IES LM-79-08 or other methodology from a laboratory accredited by National Association of Testing Authorities (NATA) or equivalent body","AND","Documentation showing the laboratory is accredited to perform IES LM-79-08 (if required)","At time of product acceptance",10,"Yes","Yes"]
["Minimum Colour Rendering Index (CRI) ","Average ≥ 80","Test report using IES LM-79-08 from a laboratory accredited by NATA or equivalent body","AND","Documentation showing the laboratory is accredited to perform IES LM-79-08","At time of product acceptance",10,"No","Yes"]
["Luminous efficacy","≥ 48 lumens/watt","Test report using IES LM-79-08 from a laboratory accredited by NATA or equivalent body","AND","Documentation showing the laboratory is accredited to perform IES LM-79-08","At time of product acceptance",10,"No","Yes"]
["Downward Light Output ","≥ 462 lumens","Test report using IES LM-79-08 from a laboratory accredited by NATA or equivalent body","AND","Documentation showing the laboratory is accredited to perform IES LM-79-08","At time of product acceptance",10,"No","No"]
["Lifetime","L70 (70% of initial Downward Light Output) at 15,000 hours","Test report using IES LM-84-14 from a Laboratory that is accredited by National Association of Testing Authorities (NATA) or equivalent body and accredited to perform IES LM-84-14","AND","IES TM-28-14 test report from a laboratory accredited by NATA or equivalent body and accredited to perform IES LM-84-14","At time of product acceptance",10,"No","No"]
["Electro-magnetic compatibility (EMC)","Compliance with AS/NZS CISPR 15:2011","Test report using AS/NZS CISPR 15:2011 from a laboratory accredited by NATA or equivalent body","AND","Documentation showing the laboratory is accredited to perform AS/NZS CISPR 15:2011","At time of product acceptance",5,"Yes","Yes"]
["Safety","Lamp complies with relevant Australian safety standard (AS/NZS 62560)","Certificate of approval to relevant Australian safety standard issued by:\n- NSW Fair Trading or an equivalent state regulator, or \n- an Independent certifier recognised by NSW Fair Trading as a Recognised External Approval Scheme","","","At time of product acceptance","N/A","Yes","Yes"]
["Dimmer Compatibility","If the lamp is to be installed in a dimmable circuit, demonstrated compatibility of the lamp with electronic transformer/ dimmer combination","Test report demonstrating dimming compatibility of lamp with the electronic transformer/dimmer combination","AND","Electrician declaration that the installed electronic transformer/dimmer combination is a compatible combination listed in the above test report","At time of implementation",1,"No","No"]
["Beam Angle","Beam angle consistent with existing lamp","Declaration by the purchaser confirming that they are satisfied with the light distribution of the upgraded lamps","","","At time of implementation","N/A","No","No"]

{"sheet":"LED_ELV_E.1","index":9,"n_rows":17,"n_cols":9,"rows_kept":17,"cut":false,"hidden":false,"merged":[[3,0,3,6]]}
["Description:","An LED Lamp that runs off an existing Extra-low voltage lighting converter (ELC) designed for retrofitting into an existing Luminaire or Lamp holder.  These are typically used as a replacement for ELV Tungsten halogen Lamps"]
["Relevant Australian safety standard:","N/A"]
[null,""]
["Equipment Class: LED Lamp Only – ELV  "]
["Parameter","Requirement","Documentation Requirement 1","And/Or?","Documentation Requirement 2","Documentation Required","Minimum test sample size","Commercial Lighting Acceptance OK?","VEU Acceptance OK?"]
["Nominal Lamp Power (NLP)","NLP (as Published by the Scheme Administrator)","Test report using IES LM-79-08 or other methodology from a laboratory accredited by National Association of Testing Authorities (NATA) or equivalent body.\nPlease note: NLP does not include power consumption of control gear. Test reports should ensure that control gear power consumption is not included.","AND","Documentation showing the laboratory is accredited to perform IES LM-79-08 (if required)","At time of product acceptance",10,"Yes","Yes"]
["Minimum true power factor","Demonstrated combined lamp circuit power of lamp and a compatible electronic transformer must be ≥ 0.7\nThe test must be conducted with an Electronic type Extra Low Voltage lighting converter designed for  halogen lamps","Test report using IES LM-79-08 or other methodology from a laboratory accredited by National Association of Testing Authorities (NATA) or equivalent body","AND","Documentation showing the laboratory is accredited to perform IES LM-79-08 (if required)","At time of product acceptance",10,"Yes","Yes"]
["Minimum Colour Rendering Index (CRI)","Average ≥ 80","Test report using IES LM-79-08 from a laboratory accredited by NATA or equivalent body","AND","Documentation showing the laboratory is accredited to perform  IES LM-79-08","At time of product acceptance",10,"No","Yes"]
["Luminous efficacy","≥ 52 lumens/watt","Test report using IES LM-79-08 from a laboratory accredited by NATA or equivalent body","AND","Documentation showing the laboratory is accredited to perform  IES LM-79-08","At time of product acceptance",10,"No","Yes"]
["Downward Light Output ","≥ 462 lumens","Test report using IES LM-79-08 from a laboratory accredited by NATA or equivalent body","AND","Documentation showing the laboratory is accredited to perform  IES LM-79-08","At time of product acceptance",10,"No","No"]
["Lifetime","L70 (70% of initial Downward Light Output) at 15,000 hours","Test report using IES LM-84-14 from a Laboratory that is accredited by National Association of Testing Authorities (NATA) or equivalent body and accredited to perform IES LM-84-14","AND","IES TM-28-14 test report from a laboratory accredited by NATA or equivalent body and accredited to perform IES LM-84-14","At time of product acceptance",10,"No","No"]
["Electro-magnetic compatibility (EMC)","Compliance with AS/NZS CISPR 15:2011","Test report using AS/NZS CISPR 15:2011 from a laboratory accredited by NATA or equivalent body","AND","Documentation showing the laboratory is accredited to perform AS/NZS CISPR 15:2011","At time of product acceptance",5,"Yes","Yes"]
["Safety","N/A (Lamp is Extra Low Voltage)","N/A","","","N/A","N/A","Yes","Yes"]
["Minimum true power factor","Combined power factor of lamp and installed electronic transformer ≥ 0.7","Declaration by electrician who performed or supervised the installation","","","At time of implementation","N/A","Yes","Yes"]
["Beam Angle","Beam angle consistent with existing lamp","Declaration by the purchaser confirming that they are satisfied with the light distribution of the upgraded lamps","","","At time of implementation","N/A","No","No"]
["Dimmer Compatibility","If the lamp is to be installed in a dimmable circuit, demonstrated compatibility of the lamp with electronic transformer/ dimmer combination","Test report demonstrating dimming compatibility of lamp with the electronic transformer/dimmer combination","AND","Electrician declaration that the installed electronic transformer/dimmer combination is a compatible combination listed in the above test report","At time of implementation",1,"No","No"]
["Transformer Compatibility","Lamp must be compatible with electronic transformer","Test report demonstrating compatibility of the lamp and the electronic transformer with which it will be installed","AND","Electrician declaration that installed electronic transformer is a compatible model listed in the above test report","At time of implementation",1,"No","No"]

{"sheet":"LED_recessed_E.1","index":10,"n_rows":33,"n_cols":9,"rows_kept":33,"cut":false,"hidden":false,"merged":[[3,0,3,6]]}
["Description:","An LED Luminaire intended for use as a recessed luminaire as defined in AS/NZS 60598.2.2 Luminaires – Particular requirements – Recessed luminaires "]
["Relevant Australian safety standard:","Luminaire: AS/NZS 60598.2.2 Luminaires - Particular requirements - Recessed luminaires"]
[null,"Control Gear: AS/NZS IEC 61347.1 Lamp control gear – General and safety requirements, and \nAS/NZS IEC 61347.2.13 Lamp control gear – Particular requirements for DC or AC supplied electronic control gear for LED modules"]
["Equipment Class: LED Luminaire - recessed"]
["Parameter","Requirement","Documentation Requirement 1","And/Or?","Documentation Requirement 2","Documentation Required","Minimum test sample size","Commercial Lighting Acceptance OK?","VEU Acceptance OK?"]
["Lamp Circuit Power (LCP)","LCP (as Published by the Scheme Administrator) ","Test report using IES LM-79-08 or other methodology from a laboratory accredited by National Association of Testing Authorities (NATA) or equivalent body","AND","Documentation showing the laboratory is accredited to perform IES LM-79-08 (if required)","At time of product acceptance",10,"Yes","Yes"]
["Minimum true power factor","≥ 0.55","Test report using IES LM-79-08 or other methodology from a laboratory accredited by National Association of Testing Authorities (NATA) or equivalent body","AND","Documentation showing the laboratory is accredited to perform IES LM-79-08 (if required)","At time of product acceptance",10,"Yes","Yes"]
["Minimum Colour Rendering Index (CRI) ","Average ≥ 80","Test report using IES LM-79-08 from a laboratory accredited by NATA or equivalent body","AND","Documentation showing the laboratory is accredited to perform IES LM-79-08","At time of product acceptance",10,"No","Yes"]
["Luminous efficacy","≥ 48 lumens/watt","Test report using IES LM-79-08 from a laboratory accredited by NATA or equivalent body","AND","Documentation showing the laboratory is accredited to perform IES LM-79-08","At time of product acceptance",10,"No","Yes"]
["Downward Light Output","≥ 462 lumens","Test report using IES LM-79-08 from a laboratory accredited by NATA or equivalent body","AND","Documentation showing the laboratory is accredited to perform IES LM-79-08","At time of product acceptance",10,"No","No"]
["Lifetime - OPTION 1","L70 (70% of initial Downward Light Output) at 15,000 hours","Test report using IES LM-84-14 from a Laboratory that is accredited by National Association of Testing Authorities (NATA) or equivalent body and accredited to perform IES LM-84-14","AND","IES TM-28-14 test report from a laboratory accredited by NATA or equivalent body and accredited to perform IES LM-84-14","At time of product acceptance",10,"No","No"]
["Lifetime - OPTION 2","L70 (70% of initial Downward Light Output) at 15,000 hours","IES LM-80-08 or ANSI/IES LM-80-15 test report from a Laboratory that is accredited by NATA or equivalent body and accredited to perform IES LM-80-08 or ANSI/IES LM-80-15, and\nManufacturer’s declaration stating that the brand and model of the LED chip tested in the IES LM-80-08 or ANSI/IES LM-80-15 report is identical to that supplied with the luminaire\n","AND","In-situ temperature measurement test (ISTMT) report conducted on one sample using Section 12.4.1 of IEC 60598.1 (or equivalent) or Clause 14 of ANSI/UL 1598 from a laboratory accredited by NATA or equivalent body to perform that test. The ISTMT must be conducted in accordance with Annex A of IES LM-84-14 (the testing laboratory does not have to be accredited to LM-84-14)                                               Manufacturer’s declaration stating the brand, model and forward current of the LED chip(s) when used under normal operating conditions in Australia, and\nIES TM-21-11 test report from a laboratory accredited by NATA or equivalent body and accredited to perform IES LM-80-08 or ANSI/IES LM-80-15. The IES TM-21-11 test report must be based on the IES LM-80-08 or ANSI/IES LM-80-15 test report and the L70 value must use the temperature and forward current reported in the ISTMT report or a higher temperature and/or forward current","At time of product acceptance",10,"No","No"]
["Electro-magnetic compatibility (EMC)","Compliance with AS/NZS CISPR 15:2011","Test report using AS/NZS CISPR 15:2011 from a laboratory accredited by NATA or equivalent body","AND","Documentation showing the laboratory is accredited to perform AS/NZS CISPR 15:2011","At time of product acceptance",5,"Yes","Yes"]
["Safety","Luminaire complies with relevant Australian safety standard (AS/NZS 60598.2.2, AS/NZS IEC 61347.1, AS/NZS IEC 61347.2.13)","Certificate of suitability for Luminaire to relevant Australian safety standard issued by:\n- NSW Fair Trading or an equivalent state regulator, or \n- an Independent certifier recognised by NSW Fair Trading as a Recognised External Approval Scheme.\nNote: Certificate must be issued in the exact brand and model as the product applied for.  Brand/model reconciliation is not accepted for safety certificates.","OR","JAS-ANZ endorsed certificate showing compliance to relevant Australian safety standard","At time of product acceptance","N/A","Yes","Yes"]
["Safety","If Control Gear is Independent","Certificate of approval for Control Gear to relevant Australian safety standard issued by:\n- NSW Fair Trading or an equivalent state regulator, or \n- an Independent certifier recognised by NSW Fair Trading as a Recognised External Approval Scheme","","","At time of product acceptance","N/A","Yes","Yes"]
["Dimmer Compatibility","If the lamp is to be installed in a dimmable circuit, demonstrated compatibility of the lamp with electronic transformer/ dimmer combination","Test report demonstrating dimming compatibility of lamp with the electronic transformer/dimmer combination","AND","Electrician declaration that the installed electronic transformer/dimmer combination is a compatible combination listed in the above test report","At time of implementation",1,"No","No"]
["Beam Angle","Beam angle consistent with existing lamp","Declaration by the purchaser confirming that they are satisfied with the light distribution of the upgraded lamps","","","At time of implementation","N/A","No","No"]
[]
[]
[]
[]
[]
[]
[]
[]
[]
["Lifetime - OPTION 2","L70 (70% of initial Downward Light Output) at 15,000 hrs","Option 2"]
[null,null,"- IES LM-80-08 or ANSI/IES LM-80-15 test report from a Laboratory that is accredited by NATA or equivalent body and accredited to perform IES LM-80-08 or ANSI/IES LM-80-15, and"]
[null,null,"- Manufacturer’s declaration stating that the brand and model of the LED chip tested in the IES LM-80-08 or ANSI/IES LM-80-15 report is identical to that supplied with the luminaire, and"]
[null,null,"- In-situ temperature measurement test (ISTMT) report conducted on one sample using Section 12.4.1 of IEC 60598.1 (or equivalent) or Clause 14 of ANSI/UL 1598 from a laboratory accredited by NATA or equivalent body to perform that test. The ISTMT must be conducted in accordance with Annex A of IES LM-84-14 (the testing laboratory does not have to be accredited to LM-84-14)\nThe ISTMT report must include:\n– Statement that the ISTMT was conducted in accordance with Annex A of IES LM-84-14 (the laboratory does not have to be accredited to IES LM-84-14) \n– The brand and model of the LED chip(s)\n– The forward current of the LED chip(s)\n– Clear photos identifying the product and the exact position of the thermocouple.\n"]
[null,null,"Manufacturer’s declaration stating the brand, model and forward current of the LED chip(s) when used under normal operating conditions in Australia, and"]
[null,null,"IES TM-21-11 test report from a laboratory accredited by NATA or equivalent body and accredited to perform IES LM-80-08 or ANSI/IES LM-80-15. The IES TM-21-11 test report must be based on the IES LM-80-08 or ANSI/IES LM-80-15 test report and the L70 value must use the temperature and forward current reported in the ISTMT report or a higher temperature and/or forward current"]
[null,null,"Note: ISTMT reports must be issued in the exact brand and model as the product applied for. Brand/model reconciliation documents are not accepted for ISTMT reports."]

{"sheet":"LED_lamp.driver_E.1","index":11,"n_rows":34,"n_cols":9,"rows_kept":34,"cut":false,"hidden":false,"merged":[[3,0,3,6]]}
["Description:","An LED-reflector Lamp and matching LED Driver intended as an alternative to a Mirrored Reflector Halogen Lamp"]
["Relevant Australian safety standard:","Control Gear: AS/NZS IEC 61347.1 Lamp control gear – General and safety requirements, and \nAS/NZS IEC 61347.2.13 Lamp control gear – Particular requirements for DC or AC supplied electronic control gear for LED modules"]
[null,""]
["Equipment Class: LED Lamp and Driver"]
["Parameter","Requirement","Documentation Requirement 1","And/Or?","Documentation Requirement 2","Documentation Required","Minimum test sample size","Commercial Lighting Acceptance OK?","VEU Acceptance OK?"]
["Lamp Circuit Power (LCP)","LCP (as Published by the Scheme Administrator) ","Test report using IES LM-79-08 or other methodology from a laboratory accredited by National Association of Testing Authorities (NATA) or equivalent body","AND","Documentation showing the laboratory is accredited to perform IES LM-79-08 (if required)","At time of product acceptance",10,"Yes","Yes"]
["Minimum true power factor","≥ 0.55","Test report using IES LM-79-08 or other methodology from a laboratory accredited by National Association of Testing Authorities (NATA) or equivalent body.\nNote: The test must be conducted with the driver the lamp is supplied with.  The lamp will only be approved for installation with the same driver it was tested with.","AND","Documentation showing the laboratory is accredited to perform IES LM-79-08 (if required)","At time of product acceptance",10,"Yes","Yes"]
["Minimum Colour Rendering Index (CRI) ","Average ≥ 80","Test report using IES LM-79-08 from a laboratory accredited by NATA or equivalent body","AND","Documentation showing the laboratory is accredited to perform IES LM-79-08","At time of product acceptance",10,"No","Yes"]
["Luminous efficacy","≥ 48 lumens/watt","Test report using IES LM-79-08 from a laboratory accredited by NATA or equivalent body","AND","Documentation showing the laboratory is accredited to perform IES LM-79-08","At time of product acceptance",10,"No","Yes"]
["Downward Light Output","≥ 462 lumens","Test report using IES LM-79-08 from a laboratory accredited by NATA or equivalent body","AND","Documentation showing the laboratory is accredited to perform IES LM-79-08","At time of product acceptance",10,"No","No"]
["Lifetime - OPTION 1","L70 (70% of initial Downward Light Output) at 15,000 hours","Test report using IES LM-84-14 from a Laboratory that is accredited by National Association of Testing Authorities (NATA) or equivalent body and accredited to perform IES LM-84-14","AND","IES TM-28-14 test report from a laboratory accredited by NATA or equivalent body and accredited to perform IES LM-84-14","At time of product acceptance",10,"No","No"]
["Lifetime - OPTION 2","L70 (70% of initial Downward Light Output) at 15,000 hours","IES LM-80-08 or ANSI/IES LM-80-15 test report from a Laboratory that is accredited by NATA or equivalent body and accredited to perform IES LM-80-08 or ANSI/IES LM-80-15, and\nManufacturer’s declaration stating that the brand and model of the LED chip tested in the IES LM-80-08 or ANSI/IES LM-80-15 report is identical to that supplied with the luminaire\n","AND","In-situ temperature measurement test (ISTMT) report conducted on one sample using Section 12.4.1 of IEC 60598.1 (or equivalent) or Clause 14 of ANSI/UL 1598 from a laboratory accredited by NATA or equivalent body to perform that test. The ISTMT must be conducted in accordance with Annex A of IES LM-84-14 (the testing laboratory does not have to be accredited to LM-84-14)                                               Manufacturer’s declaration stating the brand, model and forward current of the LED chip(s) when used under normal operating conditions in Australia, and\nIES TM-21-11 test report from a laboratory accredited by NATA or equivalent body and accredited to perform IES LM-80-08 or ANSI/IES LM-80-15. The IES TM-21-11 test report must be based on the IES LM-80-08 or ANSI/IES LM-80-15 test report and the L70 value must use the temperature and forward current reported in the ISTMT report or a higher temperature and/or forward current","At time of product acceptance",10,"No","No"]
["Electro-magnetic compatibility (EMC)","Compliance with AS/NZS CISPR 15:2011","Test report using AS/NZS CISPR 15:2011 from a laboratory accredited by NATA or equivalent body","AND","Documentation showing the laboratory is accredited to perform AS/NZS CISPR 15:2011","At time of product acceptance",5,"Yes","Yes"]
["Safety - built-in Control Gear","Control gear complies with relevant Australian safety standard (AS/NZS IEC 61347.1, AS/NZS IEC 61347.2.13)","Certificate of suitability for Control Gear to relevant Australian safety standard issued by:\n- NSW Fair Trading or an equivalent state regulator, or \n- an Independent certifier recognised by NSW Fair Trading as a Recognised External Approval Scheme\nNote:  Certificate must be issued in the exact brand and model as the product applied for.  Brand/model reconciliation is not accepted for safety certificates.","OR","JAS-ANZ endorsed certificate showing compliance to relevant Australian safety standard","At time of product acceptance","N/A","Yes","Yes"]
["Safety - independent Control Gear","Control gear complies with relevant Australian safety standard (AS/NZS IEC 61347.1, AS/NZS IEC 61347.2.13)","Certificate of approval for Control Gear to relevant Australian safety standard issued by:\n- NSW Fair Trading or an equivalent state regulator, or \n- an Independent certifier recognised by NSW Fair Trading as a Recognised External Approval Scheme","","","At time of product acceptance","N/A","Yes","Yes"]
["Dimmer Compatibility","If the lamp is to be installed in a dimmable circuit, demonstrated compatibility of the lamp with electronic transformer/ dimmer combination","Test report demonstrating dimming compatibility of lamp with the electronic transformer/dimmer combination","AND","Electrician declaration that the installed electronic transformer/dimmer combination is a compatible combination listed in the above test report","At time of implementation",1,"No","No"]
["Beam Angle","Beam angle consistent with existing lamp","Declaration by the purchaser confirming that they are satisfied with the light distribution of the upgraded lamps","","","At time of implementation","N/A","No","No"]
[]
[]
[]
[]
[]
[]
[]
[]
[]
[]
["Lifetime - OPTION 2","L70 (70% of initial Downward Light Output) at 15,000 hrs","Option 2"]
[null,null,"- IES LM-80-08 or ANSI/IES LM-80-15 test report from a Laboratory that is accredited by NATA or equivalent body and accredited to perform IES LM-80-08 or ANSI/IES LM-80-15, and"]
[null,null,"- Manufacturer’s declaration stating that the brand and model of the LED chip tested in the IES LM-80-08 or ANSI/IES LM-80-15 report is identical to that supplied with the luminaire, and"]
[null,null,"- In-situ temperature measurement test (ISTMT) report conducted on one sample using Section 12.4.1 of IEC 60598.1 (or equivalent) or Clause 14 of ANSI/UL 1598 from a laboratory accredited by NATA or equivalent body to perform that test. The ISTMT must be conducted in accordance with Annex A of IES LM-84-14 (the testing laboratory does not have to be accredited to LM-84-14)\nThe ISTMT report must include:\n– Statement that the ISTMT was conducted in accordance with Annex A of IES LM-84-14 (the laboratory does not have to be accredited to IES LM-84-14) \n– The brand and model of the LED chip(s)\n– The forward current of the LED chip(s)\n– Clear photos identifying the product and the exact position of the thermocouple.\n"]
[null,null,"Manufacturer’s declaration stating the brand, model and forward current of the LED chip(s) when used under normal operating conditions in Australia, and"]
[null,null,"IES TM-21-11 test report from a laboratory accredited by NATA or equivalent body and accredited to perform IES LM-80-08 or ANSI/IES LM-80-15. The IES TM-21-11 test report must be based on the IES LM-80-08 or ANSI/IES LM-80-15 test report and the L70 value must use the temperature and forward current reported in the ISTMT report or a higher temperature and/or forward current"]
[null,null,"Note: ISTMT reports must be issued in the exact brand and model as the product applied for. Brand/model reconciliation documents are not accepted for ISTMT reports."]

{"sheet":"LED_floodlight_E.2","index":12,"n_rows":33,"n_cols":9,"rows_kept":33,"cut":false,"hidden":false,"merged":[[3,0,3,6]]}
["Description:","An LED Luminaire intended for use as a floodlight as defined in AS/NZS 60598.2.5 Luminaires – Particular requirements - Floodlights"]
["Relevant Australian safety standard:","Luminaire: AS/NZS 60598.2.5 Luminaires - Particular requirements – Floodlights"]
[null,"Control Gear: AS/NZS IEC 61347.1 Lamp control gear – General and safety requirements, and \nAS/NZS IEC 61347.2.13 Lamp control gear – Particular requirements for DC or AC supplied electronic control gear for LED modules"]
["Equipment Class: LED Luminaire – Floodlight "]
["Parameter","Requirement","Documentation Requirement 1","And/Or?","Documentation Requirement 2","Documentation Required","Minimum test sample size","Commercial Lighting Acceptance OK?","VEU Acceptance OK?"]
["Lamp Circuit Power (LCP)","LCP (as Published by the Scheme Administrator) ","Test report using IES LM-79-08 or other methodology from a laboratory accredited by National Association of Testing Authorities (NATA) or equivalent body","AND","Documentation showing the laboratory is accredited to perform IES LM-79-08 (if required)","At time of product acceptance",10,"Yes","Yes"]
["Minimum true power factor","≥ 0.55","Test report using IES LM-79-08 or other methodology from a laboratory accredited by National Association of Testing Authorities (NATA) or equivalent body.","AND","Documentation showing the laboratory is accredited to perform IES LM-79-08 (if required)","At time of product acceptance",10,"Yes","Yes"]
["Minimum Colour Rendering Index (CRI) ","Average ≥ 80","Test report using IES LM-79-08 from a laboratory accredited by NATA or equivalent body","AND","Documentation showing the laboratory is accredited to perform IES LM-79-08","At time of product acceptance",10,"No","Yes"]
["Lifetime - OPTION 1","L70 (70% of initial Downward Light Output) at 3,650 hours","Test report using IES LM-84-14 from a Laboratory that is accredited by National Association of Testing Authorities (NATA) or equivalent body and accredited to perform IES LM-84-14","AND","IES TM-28-14 test report from a laboratory accredited by NATA or equivalent body and accredited to perform IES LM-84-14","At time of product acceptance",10,"No","No"]
["Lifetime - OPTION 2","L70 (70% of initial Downward Light Output) at 3,650 hours","IES LM-80-08 or ANSI/IES LM-80-15 test report from a Laboratory that is accredited by NATA or equivalent body and accredited to perform IES LM-80-08 or ANSI/IES LM-80-15, and\nManufacturer’s declaration stating that the brand and model of the LED chip tested in the IES LM-80-08 or ANSI/IES LM-80-15 report is identical to that supplied with the luminaire\n","AND","In-situ temperature measurement test (ISTMT) report conducted on one sample using Section 12.4.1 of IEC 60598.1 (or equivalent) or Clause 14 of ANSI/UL 1598 from a laboratory accredited by NATA or equivalent body to perform that test. The ISTMT must be conducted in accordance with Annex A of IES LM-84-14 (the testing laboratory does not have to be accredited to LM-84-14)                                               Manufacturer’s declaration stating the brand, model and forward current of the LED chip(s) when used under normal operating conditions in Australia, and\nIES TM-21-11 test report from a laboratory accredited by NATA or equivalent body and accredited to perform IES LM-80-08 or ANSI/IES LM-80-15. The IES TM-21-11 test report must be based on the IES LM-80-08 or ANSI/IES LM-80-15 test report and the L70 value must use the temperature and forward current reported in the ISTMT report or a higher temperature and/or forward current","At time of product acceptance",10,"No","No"]
["Electro-magnetic compatibility (EMC)","Compliance with AS/NZS CISPR 15:2011","Test report using AS/NZS CISPR 15:2011 from a laboratory accredited by NATA or equivalent body","AND","Documentation showing the laboratory is accredited to perform AS/NZS CISPR 15:2011","At time of product acceptance",5,"Yes","Yes"]
["Safety","Luminaire complies with relevant Australian safety standard (AS/NZS 60598.2.5)","Certificate of suitability for luminaire to relevant Australian safety standard issued by:\n- NSW Fair Trading or an equivalent state regulator, or \n- an Independent certifier recognised by NSW Fair Trading as a Recognised External Approval Scheme\nNote:  Certificate must be issued in the exact brand and model as the product applied for.  Brand/model reconciliation is not accepted for safety certificates.","OR","JAS-ANZ endorsed certificate showing compliance to relevant Australian safety standard","At time of product acceptance","N/A","Yes","Yes"]
["Safety - independent Control Gear","Control gear complies with relevant Australian safety standard (AS/NZS IEC 61347.1, AS/NZS IEC 61347.2.13)","Certificate of approval for Control Gear to relevant Australian safety standard issued by:\n- NSW Fair Trading or an equivalent state regulator, or \n- an Independent certifier recognised by NSW Fair Trading as a Recognised External Approval Scheme","","","At time of product acceptance","N/A","Yes","Yes"]
["Dimmer Compatibility","If the lamp is to be installed in a dimmable circuit, demonstrated compatibility of the lamp with electronic transformer/ dimmer combination","Test report demonstrating dimming compatibility of lamp with the electronic transformer/dimmer combination","AND","Electrician declaration that the installed electronic transformer/dimmer combination is a compatible combination listed in the above test report","At time of implementation",1,"No","No"]
["Beam Angle","Beam angle consistent with existing lamp","Declaration by the purchaser confirming that they are satisfied with the light distribution of the upgraded lamps","","","At time of implementation","N/A","No","No"]
["Light Output","Minimum light output as defined in Table E2.1 of the ESS Rule","Test report using IES LM-79-08 or other methodology from a laboratory accredited by National Association of Testing Authorities (NATA) or equivalent body.",null,null,"At time of implementation","N/A","No","No"]
[]
[]
[]
[]
[]
[]
[]
[]
[]
[]
["Lifetime - OPTION 2","L70 (70% of initial Downward Light Output) at 15,000 hrs","Option 2"]
[null,null,"- IES LM-80-08 or ANSI/IES LM-80-15 test report from a Laboratory that is accredited by NATA or equivalent body and accredited to perform IES LM-80-08 or ANSI/IES LM-80-15, and"]
[null,null,"- Manufacturer’s declaration stating that the brand and model of the LED chip tested in the IES LM-80-08 or ANSI/IES LM-80-15 report is identical to that supplied with the luminaire, and"]
[null,null,"- In-situ temperature measurement test (ISTMT) report conducted on one sample using Section 12.4.1 of IEC 60598.1 (or equivalent) or Clause 14 of ANSI/UL 1598 from a laboratory accredited by NATA or equivalent body to perform that test. The ISTMT must be conducted in accordance with Annex A of IES LM-84-14 (the testing laboratory does not have to be accredited to LM-84-14)\nThe ISTMT report must include:\n– Statement that the ISTMT was conducted in accordance with Annex A of IES LM-84-14 (the laboratory does not have to be accredited to IES LM-84-14) \n– The brand and model of the LED chip(s)\n– The forward current of the LED chip(s)\n– Clear photos identifying the product and the exact position of the thermocouple.\n"]
[null,null,"Manufacturer’s declaration stating the brand, model and forward current of the LED chip(s) when used under normal operating conditions in Australia, and"]
[null,null,"IES TM-21-11 test report from a laboratory accredited by NATA or equivalent body and accredited to perform IES LM-80-08 or ANSI/IES LM-80-15. The IES TM-21-11 test report must be based on the IES LM-80-08 or ANSI/IES LM-80-15 test report and the L70 value must use the temperature and forward current reported in the ISTMT report or a higher temperature and/or forward current"]
[null,null,"Note: ISTMT reports must be issued in the exact brand and model as the product applied for. Brand/model reconciliation documents are not accepted for ISTMT reports."]

{"sheet":"LED_240V_E.3","index":13,"n_rows":15,"n_cols":9,"rows_kept":15,"cut":false,"hidden":false,"merged":[[3,0,3,6]]}
["Description:","A self-ballasted LED Lamp as defined by AS/NZS 62560 Self-ballasted LED lamps for general lighting services by voltage > 50 V.  These Lamps are connected directly to a 240V supply."]
["Relevant Australian safety standard:","AS/NZS 62560: Self-ballasted LED-lamps for general lighting services by voltage > 50 V – Safety specifications"]
[null,""]
["Equipment Class: LED Lamp Only – 240V Self Ballasted"]
["Parameter","Requirement","Documentation Requirement 1","And/Or?","Documentation Requirement 2","Documentation Required","Minimum test sample size","Commercial Lighting Acceptance OK?","VEU Acceptance OK?"]
["Lamp Circuit Power (LCP)","LCP (as Published by the Scheme Administrator) ","Test report using IES LM-79-08 or other methodology from a laboratory accredited by National Association of Testing Authorities (NATA) or equivalent body","AND","Documentation showing the laboratory is accredited to perform IES LM-79-08 (if required)","At time of product acceptance",10,"Yes","Yes"]
["Minimum true power factor","≥ 0.55","Test report using IES LM-79-08 or other methodology from a laboratory accredited by National Association of Testing Authorities (NATA) or equivalent body","AND","Documentation showing the laboratory is accredited to perform IES LM-79-08 (if required)","At time of product acceptance",10,"Yes","Yes"]
["Minimum Colour Rendering Index (CRI) ","Average ≥ 80","Test report using IES LM-79-08 from a laboratory accredited by NATA or equivalent body","AND","Documentation showing the laboratory is accredited to perform IES LM-79-08","At time of product acceptance",10,"No","Yes"]
["Luminous efficacy","≥ 45 lumens/watt","Test report using IES LM-79-08 from a laboratory accredited by NATA or equivalent body","AND","Documentation showing the laboratory is accredited to perform IES LM-79-08","At time of product acceptance",10,"No","Yes"]
["Lifetime","L70 (70% of initial Downward Light Output) at 12,000 hours","Test report using IES LM-84-14 from a Laboratory that is accredited by National Association of Testing Authorities (NATA) or equivalent body and accredited to perform IES LM-84-14","AND","IES TM-28-14 test report from a laboratory accredited by NATA or equivalent body and accredited to perform IES LM-84-14","At time of product acceptance",10,"No","No"]
["Electro-magnetic compatibility (EMC)","Compliance with AS/NZS CISPR 15:2011","Test report using AS/NZS CISPR 15:2011 from a laboratory accredited by NATA or equivalent body","AND","Documentation showing the laboratory is accredited to perform AS/NZS CISPR 15:2011","At time of product acceptance",5,"Yes","Yes"]
["Safety","Lamp complies with relevant Australian safety standard (AS/NZS 62560)","Certificate of approval to relevant Australian safety standard issued by:\n- NSW Fair Trading or an equivalent state regulator, or \n- an Independent certifier recognised by NSW Fair Trading as a Recognised External Approval Scheme","","","At time of product acceptance","N/A","Yes","Yes"]
["Dimmer Compatibility","If the lamp is to be installed in a dimmable circuit, demonstrated compatibility of the lamp with electronic transformer/ dimmer combination","Test report demonstrating dimming compatibility of lamp with the electronic transformer/dimmer combination","AND","Electrician declaration that the installed electronic transformer/dimmer combination is a compatible combination listed in the above test report","At time of implementation",1,"No","No"]
["Light Output","Minimum light output as defined in Table E3.1 of the ESS Rule","Test report using IES LM-79-08 or other methodology from a laboratory accredited by National Association of Testing Authorities (NATA) or equivalent body.",null,null,"At time of implementation","N/A","No","No"]
["Beam Angle","Beam angle consistent with existing lamp","Declaration by the purchaser confirming that they are satisfied with the light distribution of the upgraded lamps","","","At time of implementation","N/A","No","No"]

{"sheet":"LED_floodlight_E.3","index":14,"n_rows":33,"n_cols":9,"rows_kept":33,"cut":false,"hidden":false,"merged":[[3,0,3,6]]}
["Description:","An LED Luminaire intended for use as a floodlight as defined in AS/NZS 60598.2.5 Luminaires – Particular requirements - Floodlights"]
["Relevant Australian safety standard:","Luminaire: AS/NZS 60598.2.5 Luminaires - Particular requirements – Floodlights"]
[null,"Control Gear: AS/NZS IEC 61347.1 Lamp control gear – General and safety requirements, and \nAS/NZS IEC 61347.2.13 Lamp control gear – Particular requirements for DC or AC supplied electronic control gear for LED modules"]
["Equipment Class: LED Luminaire – Floodlight "]
["Parameter","Requirement","Documentation Requirement 1","And/Or?","Documentation Requirement 2","Documentation Required","Minimum test sample size","Commercial Lighting Acceptance OK?","VEU Acceptance OK?"]
["Lamp Circuit Power (LCP)","LCP (as Published by the Scheme Administrator) ","Test report using IES LM-79-08 or other methodology from a laboratory accredited by National Association of Testing Authorities (NATA) or equivalent body","AND","Documentation showing the laboratory is accredited to perform IES LM-79-08 (if required)","At time of product acceptance",10,"Yes","Yes"]
["Minimum true power factor","≥ 0.55","Test report using IES LM-79-08 or other methodology from a laboratory accredited by National Association of Testing Authorities (NATA) or equivalent body.","AND","Documentation showing the laboratory is accredited to perform IES LM-79-08 (if required)","At time of product acceptance",10,"Yes","Yes"]
["Minimum Colour Rendering Index (CRI) ","Average ≥ 80","Test report using IES LM-79-08 from a laboratory accredited by NATA or equivalent body","AND","Documentation showing the laboratory is accredited to perform IES LM-79-08","At time of product acceptance",10,"No","Yes"]
["Luminous efficacy","≥ 45 lumens/watt","Test report using IES LM-79-08 from a laboratory accredited by NATA or equivalent body","AND","Documentation showing the laboratory is accredited to perform IES LM-79-08","At time of product acceptance",10,"No","Yes"]
["Lifetime - OPTION 1","L70 (70% of initial Downward Light Output) at 12,000 hours","Test report using IES LM-84-14 from a Laboratory that is accredited by National Association of Testing Authorities (NATA) or equivalent body and accredited to perform IES LM-84-14","AND","IES TM-28-14 test report from a laboratory accredited by NATA or equivalent body and accredited to perform IES LM-84-14","At time of product acceptance",10,"No","No"]
["Lifetime - OPTION 2","L70 (70% of initial Downward Light Output) at 12,000 hours","IES LM-80-08 or ANSI/IES LM-80-15 test report from a Laboratory that is accredited by NATA or equivalent body and accredited to perform IES LM-80-08 or ANSI/IES LM-80-15, and\nManufacturer’s declaration stating that the brand and model of the LED chip tested in the IES LM-80-08 or ANSI/IES LM-80-15 report is identical to that supplied with the luminaire\n","AND","In-situ temperature measurement test (ISTMT) report conducted on one sample using Section 12.4.1 of IEC 60598.1 (or equivalent) or Clause 14 of ANSI/UL 1598 from a laboratory accredited by NATA or equivalent body to perform that test. The ISTMT must be conducted in accordance with Annex A of IES LM-84-14 (the testing laboratory does not have to be accredited to LM-84-14)                                               Manufacturer’s declaration stating the brand, model and forward current of the LED chip(s) when used under normal operating conditions in Australia, and\nIES TM-21-11 test report from a laboratory accredited by NATA or equivalent body and accredited to perform IES LM-80-08 or ANSI/IES LM-80-15. The IES TM-21-11 test report must be based on the IES LM-80-08 or ANSI/IES LM-80-15 test report and the L70 value must use the temperature and forward current reported in the ISTMT report or a higher temperature and/or forward current","At time of product acceptance",10,"No","No"]
["Electro-magnetic compatibility (EMC)","Compliance with AS/NZS CISPR 15:2011","Test report using AS/NZS CISPR 15:2011 from a laboratory accredited by NATA or equivalent body","AND","Documentation showing the laboratory is accredited to perform AS/NZS CISPR 15:2011","At time of product acceptance",5,"Yes","Yes"]
["Safety","Luminaire complies with relevant Australian safety standard (AS/NZS 60598.2.5)","Certificate of suitability for luminaire to relevant Australian safety standard issued by:\n- NSW Fair Trading or an equivalent state regulator, or \n- an Independent certifier recognised by NSW Fair Trading as a Recognised External Approval Scheme\nNote:  Certificate must be issued in the exact brand and model as the product applied for.  Brand/model reconciliation is not accepted for safety certificates.","OR","JAS-ANZ endorsed certificate showing compliance to relevant Australian safety standard","At time of product acceptance","N/A","Yes","Yes"]
["Safety - independent Control Gear","If Control Gear is Independent","Certificate of approval for Control Gear to relevant Australian safety standard issued by:\n- NSW Fair Trading or an equivalent state regulator, or \n- an Independent certifier recognised by NSW Fair Trading as a Recognised External Approval Scheme","","","At time of product acceptance","N/A","Yes","Yes"]
["Dimmer Compatibility","If the lamp is to be installed in a dimmable circuit, demonstrated compatibility of the lamp with electronic transformer/ dimmer combination","Test report demonstrating dimming compatibility of lamp with the electronic transformer/dimmer combination","AND","Electrician declaration that the installed electronic transformer/dimmer combination is a compatible combination listed in the above test report","At time of implementation",1,"No","No"]
["Light Output","Minimum light output as defined in Table E3.1 of the ESS Rule","Test report using IES LM-79-08 or other methodology from a laboratory accredited by National Association of Testing Authorities (NATA) or equivalent body.",null,null,"At time of implementation","N/A","No","No"]
["Beam Angle","Beam angle consistent with existing lamp","Declaration by the purchaser confirming that they are satisfied with the light distribution of the upgraded lamps","","","At time of implementation","N/A","No","No"]
[]
[]
[]
[]
[]
[]
[]
[]
[]
["Lifetime - OPTION 2","L70 (70% of initial Downward Light Output) at 15,000 hrs","Option 2"]
[null,null,"- IES LM-80-08 or ANSI/IES LM-80-15 test report from a Laboratory that is accredited by NATA or equivalent body and accredited to perform IES LM-80-08 or ANSI/IES LM-80-15, and"]
[null,null,"- Manufacturer’s declaration stating that the brand and model of the LED chip tested in the IES LM-80-08 or ANSI/IES LM-80-15 report is identical to that supplied with the luminaire, and"]
[null,null,"- In-situ temperature measurement test (ISTMT) report conducted on one sample using Section 12.4.1 of IEC 60598.1 (or equivalent) or Clause 14 of ANSI/UL 1598 from a laboratory accredited by NATA or equivalent body to perform that test. The ISTMT must be conducted in accordance with Annex A of IES LM-84-14 (the testing laboratory does not have to be accredited to LM-84-14)\nThe ISTMT report must include:\n– Statement that the ISTMT was conducted in accordance with Annex A of IES LM-84-14 (the laboratory does not have to be accredited to IES LM-84-14) \n– The brand and model of the LED chip(s)\n– The forward current of the LED chip(s)\n– Clear photos identifying the product and the exact position of the thermocouple.\n"]
[null,null,"Manufacturer’s declaration stating the brand, model and forward current of the LED chip(s) when used under normal operating conditions in Australia, and"]
[null,null,"IES TM-21-11 test report from a laboratory accredited by NATA or equivalent body and accredited to perform IES LM-80-08 or ANSI/IES LM-80-15. The IES TM-21-11 test report must be based on the IES LM-80-08 or ANSI/IES LM-80-15 test report and the L70 value must use the temperature and forward current reported in the ISTMT report or a higher temperature and/or forward current"]
[null,null,"Note: ISTMT reports must be issued in the exact brand and model as the product applied for. Brand/model reconciliation documents are not accepted for ISTMT reports."]

{"sheet":"LED_linear_E.5","index":15,"n_rows":34,"n_cols":9,"rows_kept":34,"cut":false,"hidden":false,"merged":[[3,0,3,6],[0,1,0,6]]}
["Description:\n","An LED Luminaire intended for use as an alternative to a linear fluorescent Luminaire, where the Luminaire houses a matching Linear LED tube or a linear array of integrated LEDs. \nWhere the Luminaire uses a Linear LED tube, the Luminaire must not be compatible with a linear fluorescent Lamp."]
["Relevant Australian safety standard:","Luminaire: AS/NZS 60598.2.1 Luminaires - Particular requirements - Fixed general purpose luminaires"]
[null,"Control Gear: AS/NZS IEC 61347.1 Lamp control gear – General and safety requirements, and \nAS/NZS IEC 61347.2.13 Lamp control gear – Particular requirements for DC or AC supplied electronic control gear for LED modules"]
["Equipment Class: LED Luminaire – Linear Lamp"]
["Parameter","Requirement","Documentation Requirement 1","And/Or?","Documentation Requirement 2","Documentation Required","Minimum test sample size","Commercial Lighting Acceptance OK?","VEU Acceptance OK?"]
["Lamp Circuit Power (LCP)","LCP (as Published by the Scheme Administrator) ","Test report using IES LM-79-08 or other methodology from a laboratory accredited by National Association of Testing Authorities (NATA) or equivalent body","AND","Documentation showing the laboratory is accredited to perform IES LM-79-08 (if required)","At time of product acceptance",10,"Yes","Yes"]
["Minimum true power factor","≥ 0.55","Test report using IES LM-79-08 or other methodology from a laboratory accredited by National Association of Testing Authorities (NATA) or equivalent body","AND","Documentation showing the laboratory is accredited to perform IES LM-79-08 (if required)","At time of product acceptance",10,"Yes","Yes"]
["Minimum Colour Rendering Index (CRI) ","Average ≥ 80","Test report using IES LM-79-08 from a laboratory accredited by NATA or equivalent body","AND","Documentation showing the laboratory is accredited to perform IES LM-79-08","At time of product acceptance",10,"No","Yes"]
["Lifetime - OPTION 1","L70 (70% of initial Downward Light Output) at 20,000 hours","Test report using IES LM-84-14 from a Laboratory that is accredited by National Association of Testing Authorities (NATA) or equivalent body and accredited to perform IES LM-84-14","AND","IES TM-28-14 test report from a laboratory accredited by NATA or equivalent body and accredited to perform IES LM-84-14","At time of product acceptance",10,"No","No"]
["Lifetime - OPTION 2","L70 (70% of initial Downward Light Output) at 20,000 hours","IES LM-80-08 or ANSI/IES LM-80-15 test report from a Laboratory that is accredited by NATA or equivalent body and accredited to perform IES LM-80-08 or ANSI/IES LM-80-15, and\nManufacturer’s declaration stating that the brand and model of the LED chip tested in the IES LM-80-08 or ANSI/IES LM-80-15 report is identical to that supplied with the luminaire\n","AND","In-situ temperature measurement test (ISTMT) report conducted on one sample using Section 12.4.1 of IEC 60598.1 (or equivalent) or Clause 14 of ANSI/UL 1598 from a laboratory accredited by NATA or equivalent body to perform that test. The ISTMT must be conducted in accordance with Annex A of IES LM-84-14 (the testing laboratory does not have to be accredited to LM-84-14)                                               Manufacturer’s declaration stating the brand, model and forward current of the LED chip(s) when used under normal operating conditions in Australia, and\nIES TM-21-11 test report from a laboratory accredited by NATA or equivalent body and accredited to perform IES LM-80-08 or ANSI/IES LM-80-15. The IES TM-21-11 test report must be based on the IES LM-80-08 or ANSI/IES LM-80-15 test report and the L70 value must use the temperature and forward current reported in the ISTMT report or a higher temperature and/or forward current","At time of product acceptance",10,"No","No"]
["Electro-magnetic compatibility (EMC)","Compliance with AS/NZS CISPR 15:2011","Test report using AS/NZS CISPR 15:2011 from a laboratory accredited by NATA or equivalent body","AND","Documentation showing the laboratory is accredited to perform AS/NZS CISPR 15:2011","At time of product acceptance",5,"Yes","Yes"]
["Safety","Luminaire complies with relevant Australian safety standard (AS/NZS 60598.2.1)","Certificate of suitability for luminaire to relevant Australian safety standard issued by:\n- NSW Fair Trading or an equivalent state regulator, or \n- an Independent certifier recognised by NSW Fair Trading as a Recognised External Approval Scheme\nNote:  Certificate must be issued in the exact brand and model as the product applied for.  Brand/model reconciliation is not accepted for safety certificates.","OR","JAS-ANZ endorsed certificate showing compliance to relevant Australian safety standard","At time of product acceptance","N/A","Yes","Yes"]
["Safety - independent Control Gear","If Control Gear is Independent","Certificate of approval for Control Gear to relevant Australian safety standard issued by:\n- NSW Fair Trading or an equivalent state regulator, or \n- an Independent certifier recognised by NSW Fair Trading as a Recognised External Approval Scheme.\nNote: Certificate must be issued in the exact brand and model as the product applied for.  Brand/model reconciliation is not accepted for safety certificates. ","","","At time of product acceptance","N/A","Yes","Yes"]
["Dimmer Compatibility","If the lamp is to be installed in a dimmable circuit, demonstrated compatibility of the lamp with electronic transformer/ dimmer combination","Test report demonstrating dimming compatibility of lamp with the electronic transformer/dimmer combination","AND","Electrician declaration that the installed electronic transformer/dimmer combination is a compatible combination listed in the above test report","At time of implementation",1,"No","No"]
["Light Output","Minimum light output as defined in Table E5.1 of the ESS Rule","Test report using IES LM-79-08 from a laboratory accredited by NATA or equivalent body",null,null,"At time of implementation","N/A","No","No"]
[]
[]
[]
[]
[]
[]
[]
[]
[]
[]
[]
[]
["Lifetime - OPTION 2","L70 (70% of initial Downward Light Output) at 15,000 hrs","Option 2"]
[null,null,"- IES LM-80-08 or ANSI/IES LM-80-15 test report from a Laboratory that is accredited by NATA or equivalent body and accredited to perform IES LM-80-08 or ANSI/IES LM-80-15, and"]
[null,null,"- Manufacturer’s declaration stating that the brand and model of the LED chip tested in the IES LM-80-08 or ANSI/IES LM-80-15 report is identical to that supplied with the luminaire, and"]
[null,null,"- In-situ temperature measurement test (ISTMT) report conducted on one sample using Section 12.4.1 of IEC 60598.1 (or equivalent) or Clause 14 of ANSI/UL 1598 from a laboratory accredited by NATA or equivalent body to perform that test. The ISTMT must be conducted in accordance with Annex A of IES LM-84-14 (the testing laboratory does not have to be accredited to LM-84-14)\nThe ISTMT report must include:\n– Statement that the ISTMT was conducted in accordance with Annex A of IES LM-84-14 (the laboratory does not have to be accredited to IES LM-84-14) \n– The brand and model of the LED chip(s)\n– The forward current of the LED chip(s)\n– Clear photos identifying the product and the exact position of the thermocouple.\n"]
[null,null,"Manufacturer’s declaration stating the brand, model and forward current of the LED chip(s) when used under normal operating conditions in Australia, and"]
[null,null,"IES TM-21-11 test report from a laboratory accredited by NATA or equivalent body and accredited to perform IES LM-80-08 or ANSI/IES LM-80-15. The IES TM-21-11 test report must be based on the IES LM-80-08 or ANSI/IES LM-80-15 test report and the L70 value must use the temperature and forward current reported in the ISTMT report or a higher temperature and/or forward current"]
[null,null,"Note: ISTMT reports must be issued in the exact brand and model as the product applied for. Brand/model reconciliation documents are not accepted for ISTMT reports."]

{"sheet":"LED_240V_E.11","index":16,"n_rows":14,"n_cols":9,"rows_kept":14,"cut":false,"hidden":false,"merged":[[3,0,3,6]]}
["Description:","A self-ballasted LED Lamp as defined by AS/NZS 62560 Self-ballasted LED lamps for general lighting services by voltage > 50 V.  These Lamps are connected directly to a 240V supply."]
["Relevant Australian safety standard:","AS/NZS 62560: Self-ballasted LED-lamps for general lighting services by voltage > 50 V – Safety specifications"]
[null,""]
["Equipment Class: LED Lamp Only – 240V Self Ballasted"]
["Parameter","Requirement","Documentation Requirement 1","And/Or?","Documentation Requirement 2","Documentation Required","Minimum test sample size","Commercial Lighting Acceptance OK?","VEU Acceptance OK?"]
["Base (socket type)","The lamp must have an Edison screw or bayonet base.","Product specification sheet","","","At time of product acceptance","N/A","No","No"]
["Lamp Circuit Power (LCP)","LCP (as Published by the Scheme Administrator) ","Test report using IES LM-79-08 or other methodology from a laboratory accredited by National Association of Testing Authorities (NATA) or equivalent body","AND","Documentation showing the laboratory is accredited to perform IES LM-79-08 (if required)","At time of product acceptance",10,"Yes","Yes"]
["Minimum true power factor","≥ 0.55","Test report using IES LM-79-08 or other methodology from a laboratory accredited by National Association of Testing Authorities (NATA) or equivalent body","AND","Documentation showing the laboratory is accredited to perform IES LM-79-08 (if required)","At time of product acceptance",10,"Yes","Yes"]
["Minimum Colour Rendering Index (CRI) ","Average ≥ 80","Test report using IES LM-79-08 from a laboratory accredited by NATA or equivalent body","AND","Documentation showing the laboratory is accredited to perform IES LM-79-08","At time of product acceptance",10,"No","Yes"]
["Lifetime","L70 (70% of initial Downward Light Output) at 8,400 hours","Test report using IES LM-84-14 from a Laboratory that is accredited by National Association of Testing Authorities (NATA) or equivalent body and accredited to perform IES LM-84-14","AND","IES TM-28-14 test report from a laboratory accredited by NATA or equivalent body and accredited to perform IES LM-84-14","At time of product acceptance",10,"No","No"]
["Electro-magnetic compatibility (EMC)","Compliance with AS/NZS CISPR 15:2011","Test report using AS/NZS CISPR 15:2011 from a laboratory accredited by NATA or equivalent body","AND","Documentation showing the laboratory is accredited to perform AS/NZS CISPR 15:2011","At time of product acceptance",5,"Yes","Yes"]
["Safety","Lamp complies with relevant Australian safety standard (AS/NZS 62560)","Certificate of approval to relevant Australian safety standard issued by:\n- NSW Fair Trading or an equivalent state regulator, or \n- an Independent certifier recognised by NSW Fair Trading as a Recognised External Approval Scheme","","","At time of product acceptance","N/A","Yes","Yes"]
["Dimmer Compatibility","If the lamp is to be installed in a dimmable circuit, demonstrated compatibility of the lamp with electronic transformer/ dimmer combination","Test report demonstrating dimming compatibility of lamp with the electronic transformer/dimmer combination","AND","Electrician declaration that the installed electronic transformer/dimmer combination is a compatible combination listed in the above test report","At time of implementation",1,"No","No"]
["Light Output","Light Output is the same or higher than the existing equipment, as defined in Activity E11: Minimum Light Output","Test report using IES LM-79-08 or other methodology from a laboratory accredited by National Association of Testing Authorities (NATA) or equivalent body.",null,null,"At time of implementation","N/A","No","No"]

{"sheet":"LED_linear_E.13","index":17,"n_rows":34,"n_cols":9,"rows_kept":34,"cut":false,"hidden":false,"merged":[[0,1,0,6],[3,0,3,6]]}
["Description:\n","An LED Luminaire intended for use as an alternative to a linear fluorescent Luminaire, where the Luminaire houses a matching Linear LED tube or a linear array of integrated LEDs. \nWhere the Luminaire uses a Linear LED tube, the Luminaire must not be compatible with a linear fluorescent Lamp."]
["Relevant Australian safety standard:","Luminaire: AS/NZS 60598.2.1 Luminaires - Particular requirements - Fixed general purpose luminaires"]
[null,"Control Gear: AS/NZS IEC 61347.1 Lamp control gear – General and safety requirements, and \nAS/NZS IEC 61347.2.13 Lamp control gear – Particular requirements for DC or AC supplied electronic control gear for LED modules"]
["Equipment Class: LED Luminaire – Linear Lamp"]
["Parameter","Requirement","Documentation Requirement 1","And/Or?","Documentation Requirement 2","Documentation Required","Minimum test sample size","Commercial Lighting Acceptance OK?","VEU Acceptance OK?"]
["Lamp Circuit Power (LCP)","LCP (as Published by the Scheme Administrator) ","Test report using IES LM-79-08 or other methodology from a laboratory accredited by National Association of Testing Authorities (NATA) or equivalent body","AND","Documentation showing the laboratory is accredited to perform IES LM-79-08 (if required)","At time of product acceptance",10,"Yes","Yes"]
["Minimum true power factor","≥ 0.55","Test report using IES LM-79-08 or other methodology from a laboratory accredited by National Association of Testing Authorities (NATA) or equivalent body","AND","Documentation showing the laboratory is accredited to perform IES LM-79-08 (if required)","At time of product acceptance",10,"Yes","Yes"]
["Minimum Colour Rendering Index (CRI) ","Average ≥ 80","Test report using IES LM-79-08 from a laboratory accredited by NATA or equivalent body","AND","Documentation showing the laboratory is accredited to perform IES LM-79-08","At time of product acceptance",10,"No","Yes"]
["Lifetime - OPTION 1","L70 (70% of initial Downward Light Output) at 20,000 hours","Test report using IES LM-84-14 from a Laboratory that is accredited by National Association of Testing Authorities (NATA) or equivalent body and accredited to perform IES LM-84-14","AND","IES TM-28-14 test report from a laboratory accredited by NATA or equivalent body and accredited to perform IES LM-84-14","At time of product acceptance",10,"No","No"]
["Lifetime - OPTION 2","L70 (70% of initial Downward Light Output) at 20,000 hours","IES LM-80-08 or ANSI/IES LM-80-15 test report from a Laboratory that is accredited by NATA or equivalent body and accredited to perform IES LM-80-08 or ANSI/IES LM-80-15, and\nManufacturer’s declaration stating that the brand and model of the LED chip tested in the IES LM-80-08 or ANSI/IES LM-80-15 report is identical to that supplied with the luminaire\n","AND","In-situ temperature measurement test (ISTMT) report conducted on one sample using Section 12.4.1 of IEC 60598.1 (or equivalent) or Clause 14 of ANSI/UL 1598 from a laboratory accredited by NATA or equivalent body to perform that test. The ISTMT must be conducted in accordance with Annex A of IES LM-84-14 (the testing laboratory does not have to be accredited to LM-84-14)                                               Manufacturer’s declaration stating the brand, model and forward current of the LED chip(s) when used under normal operating conditions in Australia, and\nIES TM-21-11 test report from a laboratory accredited by NATA or equivalent body and accredited to perform IES LM-80-08 or ANSI/IES LM-80-15. The IES TM-21-11 test report must be based on the IES LM-80-08 or ANSI/IES LM-80-15 test report and the L70 value must use the temperature and forward current reported in the ISTMT report or a higher temperature and/or forward current","At time of product acceptance",10,"No","No"]
["Electro-magnetic compatibility (EMC)","Compliance with AS/NZS CISPR 15:2011","Test report using AS/NZS CISPR 15:2011 from a laboratory accredited by NATA or equivalent body","AND","Documentation showing the laboratory is accredited to perform AS/NZS CISPR 15:2011","At time of product acceptance",5,"Yes","Yes"]
["Safety","Luminaire complies with relevant Australian safety standard (AS/NZS 60598.2.1)","Certificate of suitability for luminaire to relevant Australian safety standard issued by:\n- NSW Fair Trading or an equivalent state regulator, or \n- an Independent certifier recognised by NSW Fair Trading as a Recognised External Approval Scheme\nNote:  Certificate must be issued in the exact brand and model as the product applied for.  Brand/model reconciliation is not accepted for safety certificates.","OR","JAS-ANZ endorsed certificate showing compliance to relevant Australian safety standard","At time of product acceptance","N/A","Yes","Yes"]
["Safety - independent Control Gear","If Control Gear is Independent","Certificate of approval for Control Gear to relevant Australian safety standard issued by:\n- NSW Fair Trading or an equivalent state regulator, or \n- an Independent certifier recognised by NSW Fair Trading as a Recognised External Approval Scheme.\nNote: Certificate must be issued in the exact brand and model as the product applied for.  Brand/model reconciliation is not accepted for safety certificates. ","","","At time of product acceptance","N/A","Yes","Yes"]
["Dimmer Compatibility","If the lamp is to be installed in a dimmable circuit, demonstrated compatibility of the lamp with electronic transformer/ dimmer combination","Test report demonstrating dimming compatibility of lamp with the electronic transformer/dimmer combination","AND","Electrician declaration that the installed electronic transformer/dimmer combination is a compatible combination listed in the above test report","At time of implementation",1,"No","No"]
["Light Output","Minimum light output as defined in Table E5.1 of the ESS Rule","Test report using IES LM-79-08 from a laboratory accredited by NATA or equivalent body",null,null,"At time of implementation","N/A","No","No"]
[]
[]
[]
[]
[]
[]
[]
[]
[]
[]
[]
[]
["Lifetime - OPTION 2","L70 (70% of initial Downward Light Output) at 15,000 hrs","Option 2"]
[null,null,"- IES LM-80-08 or ANSI/IES LM-80-15 test report from a Laboratory that is accredited by NATA or equivalent body and accredited to perform IES LM-80-08 or ANSI/IES LM-80-15, and"]
[null,null,"- Manufacturer’s declaration stating that the brand and model of the LED chip tested in the IES LM-80-08 or ANSI/IES LM-80-15 report is identical to that supplied with the luminaire, and"]
[null,null,"- In-situ temperature measurement test (ISTMT) report conducted on one sample using Section 12.4.1 of IEC 60598.1 (or equivalent) or Clause 14 of ANSI/UL 1598 from a laboratory accredited by NATA or equivalent body to perform that test. The ISTMT must be conducted in accordance with Annex A of IES LM-84-14 (the testing laboratory does not have to be accredited to LM-84-14)\nThe ISTMT report must include:\n– Statement that the ISTMT was conducted in accordance with Annex A of IES LM-84-14 (the laboratory does not have to be accredited to IES LM-84-14) \n– The brand and model of the LED chip(s)\n– The forward current of the LED chip(s)\n– Clear photos identifying the product and the exact position of the thermocouple.\n"]
[null,null,"Manufacturer’s declaration stating the brand, model and forward current of the LED chip(s) when used under normal operating conditions in Australia, and"]
[null,null,"IES TM-21-11 test report from a laboratory accredited by NATA or equivalent body and accredited to perform IES LM-80-08 or ANSI/IES LM-80-15. The IES TM-21-11 test report must be based on the IES LM-80-08 or ANSI/IES LM-80-15 test report and the L70 value must use the temperature and forward current reported in the ISTMT report or a higher temperature and/or forward current"]
[null,null,"Note: ISTMT reports must be issued in the exact brand and model as the product applied for. Brand/model reconciliation documents are not accepted for ISTMT reports."]